Workbook

Sheet data
A1: بيانات الطلاب
A3: م | B3: كود الطالب | C3: اسم الطالب | D3: الرقم القومى | E3: حاله الابصار | F3: الجنسية | G3: رقم الهاتف | H3: المذهب | I3: المرحلة | J3: الصف الدراسى | K3: الشعبه | L3: مستجد او معيد | M3: حاله القيد | N3: كود المعهد | O3: اسم المعهد | P3: كود الادارة | Q3: الادارة التعليمية
A4: 1 | B4: 140487 | C4: خلود السيد محمد | D4: 30601201150065 | E4: مبصر | F4: مصر | G4: 01083644235 | H4: شافعى | I4: ثانوية | J4: الاول الثانوى | K4: علمي | L4: مستجد | M4: مقيد | N4: 32582021 | O4: فتيات قلين الثانوى | P4: 36552 | Q4: إدارة القن التعليمية الأزهرية
A5: 2 | B5: 140488 | C5: سهام محمد اللواتي | D5: 30601201150066 | E5: مبصر | F5: مصر | G5: 01083644236 | H5: شافعى | I5: ثانوية | J5: الاول الثانوى | K5: علمي | L5: مستجد | M5: مقيد | N5: 32582021 | O5: فتيات قلين الثانوى | P5: 36552 | Q5: إدارة القن التعليمية الأزهرية
A6: 3 | B6: 140489 | C6: آلاء محسن علي عوض | D6: 30601201150067 | E6: مبصر | F6: مصر | G6: 01083644237 | H6: شافعى | I6: ثانوية | J6: الاول الثانوى | K6: أدبي | L6: مستجد | M6: مقيد | N6: 32582021 | O6: فتيات قلين الثانوى | P6: 36552 | Q6: إدارة القن التعليمية الأزهرية
A7: 4 | B7: 140490 | C7: منى سالم محجوب | D7: 30601201150068 | E7: مبصر | F7: مصر | G7: 01083644238 | H7: شافعى | I7: ثانوية | J7: الاول الثانوى | K7: علمي | L7: مستجد | M7: مقيد | N7: 32582021 | O7: فتيات قلين الثانوى | P7: 36552 | Q7: إدارة القن التعليمية الأزهرية
A8: 5 | B8: 140491 | C8: هند كريم حمدي | D8: 30601201150069 | E8: مبصر | F8: مصر | G8: 01083644239 | H8: شافعى | I8: ثانوية | J8: الاول الثانوى | K8: أدبي | L8: مستجد | M8: مقيد | N8: 32582021 | O8: فتيات قلين الثانوى | P8: 36552 | Q8: إدارة القن التعليمية الأزهرية
A9: 6 | B9: 140492 | C9: نورا رجب حسن | D9: 30601201150070 | E9: مبصر | F9: مصر | G9: 01083644240 | H9: شافعى | I9: ثانوية | J9: الثاني الثانوى | K9: أدبي | L9: مستجد | M9: مقيد | N9: 32582021 | O9: فتيات قلين الثانوى | P9: 36552 | Q9: إدارة القن التعليمية الأزهرية
A10: 7 | B10: 140493 | C10: حبيبة السيد محمود | D10: 30601201150071 | E10: مبصر | F10: مصر | G10: 01083644241 | H10: شافعى | I10: ثانوية | J10: الثاني الثانوى | K10: أدبي | L10: مستجد | M10: مقيد | N10: 32582021 | O10: فتيات قلين الثانوى | P10: 36552 | Q10: إدارة القن التعليمية الأزهرية
A11: 8 | B11: 140494 | C11: مروة إبراهيم الزناتي | D11: 30601201150072 | E11: مبصر | F11: مصر | G11: 01083644242 | H11: شافعى | I11: ثانوية | J11: الثاني الثانوى | K11: علمي | L11: مستجد | M11: مقيد | N11: 32582021 | O11: فتيات قلين الثانوى | P11: 36552 | Q11: إدارة القن التعليمية الأزهرية
A12: 9 | B12: 140495 | C12: وفاء محمد عمر | D12: 30601201150073 | E12: مبصر | F12: مصر | G12: 01083644243 | H12: شافعى | I12: ثانوية | J12: الثاني الثانوى | K12: أدبي | L12: مستجد | M12: مقيد | N12: 32582021 | O12: فتيات قلين الثانوى | P12: 36552 | Q12: إدارة القن التعليمية الأزهرية
A13: 10 | B13: 140496 | C13: يمنى مسعود خالد | D13: 30601201150074 | E13: مبصر | F13: مصر | G13: 01083644244 | H13: شافعى | I13: ثانوية | J13: الثالث الثانوى | K13: علمي | L13: مستجد | M13: مقيد | N13: 32582021 | O13: فتيات قلين الثانوى | P13: 36552 | Q13: إدارة القن التعليمية الأزهرية
A14: 11 | B14: 140497 | C14: أمنية كرم محمود | D14: 30601201150075 | E14: مبصر | F14: مصر | G14: 01083644245 | H14: شافعى | I14: ثانوية | J14: الثالث الثانوى | K14: علمي | L14: مستجد | M14: مقيد | N14: 32582021 | O14: فتيات قلين الثانوى | P14: 36552 | Q14: إدارة القن التعليمية الأزهرية
A15: 17 | B15: 140498 | C15: نور سامح محمد | D15: 30601201150076 | E15: مبصر | F15: مصر | G15: 01083644246 | H15: شافعى | I15: ثانوية | J15: الثالث الثانوى | K15: أدبي | L15: مستجد | M15: مقيد | N15: 32582021 | O15: فتيات قلين الثانوى | P15: 36552 | Q15: إدارة القن التعليمية الأزهرية
A16: 18 | B16: 140499 | C16: رودينا احمد إبراهيم | D16: 30601201150077 | E16: مبصر | F16: مصر | G16: 01083644247 | H16: شافعى | I16: ثانوية | J16: الثالث الثانوى | K16: علمي | L16: مستجد | M16: مقيد | N16: 32582021 | O16: فتيات قلين الثانوى | P16: 36552 | Q16: إدارة القن التعليمية الأزهرية
A17: 19 | B17: 140500 | C17: سارة عماد فتحي | D17: 30601201150078 | E17: مبصر | F17: مصر | G17: 01083644248 | H17: شافعى | I17: ثانوية | J17: الثالث الثانوى | K17: علمي | L17: معيدة | M17: مقيد | N17: 32582021 | O17: فتيات قلين الثانوى | P17: 36552 | Q17: إدارة القن التعليمية الأزهرية

Sheet تصفية
A1: م | B1: الاسم | C1: الرقم القومي | D1: الصف الدراسي | E1: القسم | F1: رقم الهاتف | G1: حالة القيد
A2: =IF(data!A4="","",data!A4) -> 1 | B2: =IF(A2="","",VLOOKUP(A2,data!$A$4:$Q$17,3,0)) -> خلود السيد محمد | C2: =IF(A2="","",VLOOKUP(A2,data!$A$4:$Q$17,4,0)) -> 30601201150065 | D2: =IF(A2="","",VLOOKUP(A2,data!$A$4:$Q$17,10,0)) -> الاول الثانوى | E2: =IF(A2="","",VLOOKUP(A2,data!$A$4:$Q$17,11,0)) -> علمي | F2: =IF(A2="","",VLOOKUP(A2,data!$A$4:$Q$17,7,0)) -> 01083644235 | G2: =IF(A2="","",VLOOKUP(A2,data!$A$4:$Q$17,12,0)) -> مستجد
A3: =IF(data!A5="","",data!A5) -> 2 | B3: =IF(A3="","",VLOOKUP(A3,data!$A$4:$Q$17,3,0)) -> سهام محمد اللواتي | C3: =IF(A3="","",VLOOKUP(A3,data!$A$4:$Q$17,4,0)) -> 30601201150066 | D3: =IF(A3="","",VLOOKUP(A3,data!$A$4:$Q$17,10,0)) -> الاول الثانوى | E3: =IF(A3="","",VLOOKUP(A3,data!$A$4:$Q$17,11,0)) -> علمي | F3: =IF(A3="","",VLOOKUP(A3,data!$A$4:$Q$17,7,0)) -> 01083644236 | G3: =IF(A3="","",VLOOKUP(A3,data!$A$4:$Q$17,12,0)) -> مستجد
A4: =IF(data!A6="","",data!A6) -> 3 | B4: =IF(A4="","",VLOOKUP(A4,data!$A$4:$Q$17,3,0)) -> آلاء محسن علي عوض | C4: =IF(A4="","",VLOOKUP(A4,data!$A$4:$Q$17,4,0)) -> 30601201150067 | D4: =IF(A4="","",VLOOKUP(A4,data!$A$4:$Q$17,10,0)) -> الاول الثانوى | E4: =IF(A4="","",VLOOKUP(A4,data!$A$4:$Q$17,11,0)) -> أدبي | F4: =IF(A4="","",VLOOKUP(A4,data!$A$4:$Q$17,7,0)) -> 01083644237 | G4: =IF(A4="","",VLOOKUP(A4,data!$A$4:$Q$17,12,0)) -> مستجد
A5: =IF(data!A7="","",data!A7) -> 4 | B5: =IF(A5="","",VLOOKUP(A5,data!$A$4:$Q$17,3,0)) -> منى سالم محجوب | C5: =IF(A5="","",VLOOKUP(A5,data!$A$4:$Q$17,4,0)) -> 30601201150068 | D5: =IF(A5="","",VLOOKUP(A5,data!$A$4:$Q$17,10,0)) -> الاول الثانوى | E5: =IF(A5="","",VLOOKUP(A5,data!$A$4:$Q$17,11,0)) -> علمي | F5: =IF(A5="","",VLOOKUP(A5,data!$A$4:$Q$17,7,0)) -> 01083644238 | G5: =IF(A5="","",VLOOKUP(A5,data!$A$4:$Q$17,12,0)) -> مستجد
A6: =IF(data!A8="","",data!A8) -> 5 | B6: =IF(A6="","",VLOOKUP(A6,data!$A$4:$Q$17,3,0)) -> هند كريم حمدي | C6: =IF(A6="","",VLOOKUP(A6,data!$A$4:$Q$17,4,0)) -> 30601201150069 | D6: =IF(A6="","",VLOOKUP(A6,data!$A$4:$Q$17,10,0)) -> الاول الثانوى | E6: =IF(A6="","",VLOOKUP(A6,data!$A$4:$Q$17,11,0)) -> أدبي | F6: =IF(A6="","",VLOOKUP(A6,data!$A$4:$Q$17,7,0)) -> 01083644239 | G6: =IF(A6="","",VLOOKUP(A6,data!$A$4:$Q$17,12,0)) -> مستجد
A7: =IF(data!A9="","",data!A9) -> 6 | B7: =IF(A7="","",VLOOKUP(A7,data!$A$4:$Q$17,3,0)) -> نورا رجب حسن | C7: =IF(A7="","",VLOOKUP(A7,data!$A$4:$Q$17,4,0)) -> 30601201150070 | D7: =IF(A7="","",VLOOKUP(A7,data!$A$4:$Q$17,10,0)) -> الثاني الثانوى | E7: =IF(A7="","",VLOOKUP(A7,data!$A$4:$Q$17,11,0)) -> أدبي | F7: =IF(A7="","",VLOOKUP(A7,data!$A$4:$Q$17,7,0)) -> 01083644240 | G7: =IF(A7="","",VLOOKUP(A7,data!$A$4:$Q$17,12,0)) -> مستجد
A8: =IF(data!A10="","",data!A10) -> 7 | B8: =IF(A8="","",VLOOKUP(A8,data!$A$4:$Q$17,3,0)) -> حبيبة السيد محمود | C8: =IF(A8="","",VLOOKUP(A8,data!$A$4:$Q$17,4,0)) -> 30601201150071 | D8: =IF(A8="","",VLOOKUP(A8,data!$A$4:$Q$17,10,0)) -> الثاني الثانوى | E8: =IF(A8="","",VLOOKUP(A8,data!$A$4:$Q$17,11,0)) -> أدبي | F8: =IF(A8="","",VLOOKUP(A8,data!$A$4:$Q$17,7,0)) -> 01083644241 | G8: =IF(A8="","",VLOOKUP(A8,data!$A$4:$Q$17,12,0)) -> مستجد
A9: =IF(data!A11="","",data!A11) -> 8 | B9: =IF(A9="","",VLOOKUP(A9,data!$A$4:$Q$17,3,0)) -> مروة إبراهيم الزناتي | C9: =IF(A9="","",VLOOKUP(A9,data!$A$4:$Q$17,4,0)) -> 30601201150072 | D9: =IF(A9="","",VLOOKUP(A9,data!$A$4:$Q$17,10,0)) -> الثاني الثانوى | E9: =IF(A9="","",VLOOKUP(A9,data!$A$4:$Q$17,11,0)) -> علمي | F9: =IF(A9="","",VLOOKUP(A9,data!$A$4:$Q$17,7,0)) -> 01083644242 | G9: =IF(A9="","",VLOOKUP(A9,data!$A$4:$Q$17,12,0)) -> مستجد
A10: =IF(data!A12="","",data!A12) -> 9 | B10: =IF(A10="","",VLOOKUP(A10,data!$A$4:$Q$17,3,0)) -> وفاء محمد عمر | C10: =IF(A10="","",VLOOKUP(A10,data!$A$4:$Q$17,4,0)) -> 30601201150073 | D10: =IF(A10="","",VLOOKUP(A10,data!$A$4:$Q$17,10,0)) -> الثاني الثانوى | E10: =IF(A10="","",VLOOKUP(A10,data!$A$4:$Q$17,11,0)) -> أدبي | F10: =IF(A10="","",VLOOKUP(A10,data!$A$4:$Q$17,7,0)) -> 01083644243 | G10: =IF(A10="","",VLOOKUP(A10,data!$A$4:$Q$17,12,0)) -> مستجد
A11: =IF(data!A13="","",data!A13) -> 10 | B11: =IF(A11="","",VLOOKUP(A11,data!$A$4:$Q$17,3,0)) -> يمنى مسعود خالد | C11: =IF(A11="","",VLOOKUP(A11,data!$A$4:$Q$17,4,0)) -> 30601201150074 | D11: =IF(A11="","",VLOOKUP(A11,data!$A$4:$Q$17,10,0)) -> الثالث الثانوى | E11: =IF(A11="","",VLOOKUP(A11,data!$A$4:$Q$17,11,0)) -> علمي | F11: =IF(A11="","",VLOOKUP(A11,data!$A$4:$Q$17,7,0)) -> 01083644244 | G11: =IF(A11="","",VLOOKUP(A11,data!$A$4:$Q$17,12,0)) -> مستجد
A12: =IF(data!A14="","",data!A14) -> 11 | B12: =IF(A12="","",VLOOKUP(A12,data!$A$4:$Q$17,3,0)) -> أمنية كرم محمود | C12: =IF(A12="","",VLOOKUP(A12,data!$A$4:$Q$17,4,0)) -> 30601201150075 | D12: =IF(A12="","",VLOOKUP(A12,data!$A$4:$Q$17,10,0)) -> الثالث الثانوى | E12: =IF(A12="","",VLOOKUP(A12,data!$A$4:$Q$17,11,0)) -> علمي | F12: =IF(A12="","",VLOOKUP(A12,data!$A$4:$Q$17,7,0)) -> 01083644245 | G12: =IF(A12="","",VLOOKUP(A12,data!$A$4:$Q$17,12,0)) -> مستجد
A13: =IF(data!A15="","",data!A15) -> 17 | B13: =IF(A13="","",VLOOKUP(A13,data!$A$4:$Q$17,3,0)) -> نور سامح محمد | C13: =IF(A13="","",VLOOKUP(A13,data!$A$4:$Q$17,4,0)) -> 30601201150076 | D13: =IF(A13="","",VLOOKUP(A13,data!$A$4:$Q$17,10,0)) -> الثالث الثانوى | E13: =IF(A13="","",VLOOKUP(A13,data!$A$4:$Q$17,11,0)) -> أدبي | F13: =IF(A13="","",VLOOKUP(A13,data!$A$4:$Q$17,7,0)) -> 01083644246 | G13: =IF(A13="","",VLOOKUP(A13,data!$A$4:$Q$17,12,0)) -> مستجد
A14: =IF(data!A16="","",data!A16) -> 18 | B14: =IF(A14="","",VLOOKUP(A14,data!$A$4:$Q$17,3,0)) -> رودينا احمد إبراهيم | C14: =IF(A14="","",VLOOKUP(A14,data!$A$4:$Q$17,4,0)) -> 30601201150077 | D14: =IF(A14="","",VLOOKUP(A14,data!$A$4:$Q$17,10,0)) -> الثالث الثانوى | E14: =IF(A14="","",VLOOKUP(A14,data!$A$4:$Q$17,11,0)) -> علمي | F14: =IF(A14="","",VLOOKUP(A14,data!$A$4:$Q$17,7,0)) -> 01083644247 | G14: =IF(A14="","",VLOOKUP(A14,data!$A$4:$Q$17,12,0)) -> مستجد
A15: =IF(data!A17="","",data!A17) -> 19 | B15: =IF(A15="","",VLOOKUP(A15,data!$A$4:$Q$17,3,0)) -> سارة عماد فتحي | C15: =IF(A15="","",VLOOKUP(A15,data!$A$4:$Q$17,4,0)) -> 30601201150078 | D15: =IF(A15="","",VLOOKUP(A15,data!$A$4:$Q$17,10,0)) -> الثالث الثانوى | E15: =IF(A15="","",VLOOKUP(A15,data!$A$4:$Q$17,11,0)) -> علمي | F15: =IF(A15="","",VLOOKUP(A15,data!$A$4:$Q$17,7,0)) -> 01083644248 | G15: =IF(A15="","",VLOOKUP(A15,data!$A$4:$Q$17,12,0)) -> معيدة
A16: =IF(data!A18="","",data!A18) ->  | B16: =IF(A16="","",VLOOKUP(A16,data!$A$4:$Q$17,3,0)) ->  | C16: =IF(A16="","",VLOOKUP(A16,data!$A$4:$Q$17,4,0)) ->  | D16: =IF(A16="","",VLOOKUP(A16,data!$A$4:$Q$17,11,0)) ->  | E16: =IF(A16="","",VLOOKUP(A16,data!$A$4:$Q$17,12,0)) ->  | F16: =IF(A16="","",VLOOKUP(A16,data!$A$4:$Q$17,8,0)) -> 
A17: =IF(data!A19="","",data!A19) ->  | B17: =IF(A17="","",VLOOKUP(A17,data!$A$4:$Q$17,3,0)) ->  | C17: =IF(A17="","",VLOOKUP(A17,data!$A$4:$Q$17,4,0)) ->  | D17: =IF(A17="","",VLOOKUP(A17,data!$A$4:$Q$17,11,0)) ->  | E17: =IF(A17="","",VLOOKUP(A17,data!$A$4:$Q$17,12,0)) ->  | F17: =IF(A17="","",VLOOKUP(A17,data!$A$4:$Q$17,8,0)) -> 
A18: =IF(data!A20="","",data!A20) ->  | B18: =IF(A18="","",VLOOKUP(A18,data!$A$4:$Q$17,3,0)) ->  | C18: =IF(A18="","",VLOOKUP(A18,data!$A$4:$Q$17,4,0)) ->  | D18: =IF(A18="","",VLOOKUP(A18,data!$A$4:$Q$17,11,0)) ->  | E18: =IF(A18="","",VLOOKUP(A18,data!$A$4:$Q$17,12,0)) ->  | F18: =IF(A18="","",VLOOKUP(A18,data!$A$4:$Q$17,8,0)) -> 
A19: =IF(data!A160="","",data!A160) ->  | B19: =IF(A19="","",VLOOKUP(A19,data!A160:C828,3,0)) ->  | C19: =IF(A19="","",(VLOOKUP(A19,data!A160:O1068,4,0))) ->  | D19: =IF(A19="","",(VLOOKUP(A19,data!A160:O1068,11,0))) ->  | E19: =IF(A19="","",(VLOOKUP(A19,data!A160:O1068,12,0))) -> 
A20: =IF(data!A161="","",data!A161) ->  | B20: =IF(A20="","",VLOOKUP(A20,data!A161:C829,3,0)) ->  | C20: =IF(A20="","",(VLOOKUP(A20,data!A161:O1069,4,0))) ->  | D20: =IF(A20="","",(VLOOKUP(A20,data!A161:O1069,11,0))) ->  | E20: =IF(A20="","",(VLOOKUP(A20,data!A161:O1069,12,0))) -> 
A21: =IF(data!A162="","",data!A162) ->  | B21: =IF(A21="","",VLOOKUP(A21,data!A162:C830,3,0)) ->  | C21: =IF(A21="","",(VLOOKUP(A21,data!A162:O1070,4,0))) ->  | D21: =IF(A21="","",(VLOOKUP(A21,data!A162:O1070,11,0))) ->  | E21: =IF(A21="","",(VLOOKUP(A21,data!A162:O1070,12,0))) -> 
A22: =IF(data!A163="","",data!A163) ->  | B22: =IF(A22="","",VLOOKUP(A22,data!A163:C831,3,0)) ->  | C22: =IF(A22="","",(VLOOKUP(A22,data!A163:O1071,4,0))) ->  | D22: =IF(A22="","",(VLOOKUP(A22,data!A163:O1071,11,0))) ->  | E22: =IF(A22="","",(VLOOKUP(A22,data!A163:O1071,12,0))) -> 
A23: =IF(data!A164="","",data!A164) ->  | B23: =IF(A23="","",VLOOKUP(A23,data!A164:C832,3,0)) ->  | C23: =IF(A23="","",(VLOOKUP(A23,data!A164:O1072,4,0))) ->  | D23: =IF(A23="","",(VLOOKUP(A23,data!A164:O1072,11,0))) ->  | E23: =IF(A23="","",(VLOOKUP(A23,data!A164:O1072,12,0))) -> 
A24: =IF(data!A165="","",data!A165) ->  | B24: =IF(A24="","",VLOOKUP(A24,data!A165:C833,3,0)) ->  | C24: =IF(A24="","",(VLOOKUP(A24,data!A165:O1073,4,0))) ->  | D24: =IF(A24="","",(VLOOKUP(A24,data!A165:O1073,11,0))) ->  | E24: =IF(A24="","",(VLOOKUP(A24,data!A165:O1073,12,0))) -> 
A25: =IF(data!A166="","",data!A166) ->  | B25: =IF(A25="","",VLOOKUP(A25,data!A166:C834,3,0)) ->  | C25: =IF(A25="","",(VLOOKUP(A25,data!A166:O1074,4,0))) ->  | D25: =IF(A25="","",(VLOOKUP(A25,data!A166:O1074,11,0))) ->  | E25: =IF(A25="","",(VLOOKUP(A25,data!A166:O1074,12,0))) -> 
A26: =IF(data!A167="","",data!A167) ->  | B26: =IF(A26="","",VLOOKUP(A26,data!A167:C835,3,0)) ->  | C26: =IF(A26="","",(VLOOKUP(A26,data!A167:O1075,4,0))) ->  | D26: =IF(A26="","",(VLOOKUP(A26,data!A167:O1075,11,0))) ->  | E26: =IF(A26="","",(VLOOKUP(A26,data!A167:O1075,12,0))) -> 
A27: =IF(data!A168="","",data!A168) ->  | B27: =IF(A27="","",VLOOKUP(A27,data!A168:C836,3,0)) ->  | C27: =IF(A27="","",(VLOOKUP(A27,data!A168:O1076,4,0))) ->  | D27: =IF(A27="","",(VLOOKUP(A27,data!A168:O1076,11,0))) ->  | E27: =IF(A27="","",(VLOOKUP(A27,data!A168:O1076,12,0))) -> 
A28: =IF(data!A169="","",data!A169) ->  | B28: =IF(A28="","",VLOOKUP(A28,data!A169:C837,3,0)) ->  | C28: =IF(A28="","",(VLOOKUP(A28,data!A169:O1077,4,0))) ->  | D28: =IF(A28="","",(VLOOKUP(A28,data!A169:O1077,11,0))) ->  | E28: =IF(A28="","",(VLOOKUP(A28,data!A169:O1077,12,0))) -> 
A29: =IF(data!A170="","",data!A170) ->  | B29: =IF(A29="","",VLOOKUP(A29,data!A170:C838,3,0)) ->  | C29: =IF(A29="","",(VLOOKUP(A29,data!A170:O1078,4,0))) ->  | D29: =IF(A29="","",(VLOOKUP(A29,data!A170:O1078,11,0))) ->  | E29: =IF(A29="","",(VLOOKUP(A29,data!A170:O1078,12,0))) -> 
A30: =IF(data!A171="","",data!A171) ->  | B30: =IF(A30="","",VLOOKUP(A30,data!A171:C839,3,0)) ->  | C30: =IF(A30="","",(VLOOKUP(A30,data!A171:O1079,4,0))) ->  | D30: =IF(A30="","",(VLOOKUP(A30,data!A171:O1079,11,0))) ->  | E30: =IF(A30="","",(VLOOKUP(A30,data!A171:O1079,12,0))) -> 
A31: =IF(data!A172="","",data!A172) ->  | B31: =IF(A31="","",VLOOKUP(A31,data!A172:C840,3,0)) ->  | C31: =IF(A31="","",(VLOOKUP(A31,data!A172:O1080,4,0))) ->  | D31: =IF(A31="","",(VLOOKUP(A31,data!A172:O1080,11,0))) ->  | E31: =IF(A31="","",(VLOOKUP(A31,data!A172:O1080,12,0))) -> 
A32: =IF(data!A173="","",data!A173) ->  | B32: =IF(A32="","",VLOOKUP(A32,data!A173:C841,3,0)) ->  | C32: =IF(A32="","",(VLOOKUP(A32,data!A173:O1081,4,0))) ->  | D32: =IF(A32="","",(VLOOKUP(A32,data!A173:O1081,11,0))) ->  | E32: =IF(A32="","",(VLOOKUP(A32,data!A173:O1081,12,0))) -> 
A33: =IF(data!A174="","",data!A174) ->  | B33: =IF(A33="","",VLOOKUP(A33,data!A174:C842,3,0)) ->  | C33: =IF(A33="","",(VLOOKUP(A33,data!A174:O1082,4,0))) ->  | D33: =IF(A33="","",(VLOOKUP(A33,data!A174:O1082,11,0))) ->  | E33: =IF(A33="","",(VLOOKUP(A33,data!A174:O1082,12,0))) -> 
A34: =IF(data!A175="","",data!A175) ->  | B34: =IF(A34="","",VLOOKUP(A34,data!A175:C843,3,0)) ->  | C34: =IF(A34="","",(VLOOKUP(A34,data!A175:O1083,4,0))) ->  | D34: =IF(A34="","",(VLOOKUP(A34,data!A175:O1083,11,0))) ->  | E34: =IF(A34="","",(VLOOKUP(A34,data!A175:O1083,12,0))) -> 
A35: =IF(data!A176="","",data!A176) ->  | B35: =IF(A35="","",VLOOKUP(A35,data!A176:C844,3,0)) ->  | C35: =IF(A35="","",(VLOOKUP(A35,data!A176:O1084,4,0))) ->  | D35: =IF(A35="","",(VLOOKUP(A35,data!A176:O1084,11,0))) ->  | E35: =IF(A35="","",(VLOOKUP(A35,data!A176:O1084,12,0))) -> 
A36: =IF(data!A177="","",data!A177) ->  | B36: =IF(A36="","",VLOOKUP(A36,data!A177:C845,3,0)) ->  | C36: =IF(A36="","",(VLOOKUP(A36,data!A177:O1085,4,0))) ->  | D36: =IF(A36="","",(VLOOKUP(A36,data!A177:O1085,11,0))) ->  | E36: =IF(A36="","",(VLOOKUP(A36,data!A177:O1085,12,0))) -> 
A37: =IF(data!A178="","",data!A178) ->  | B37: =IF(A37="","",VLOOKUP(A37,data!A178:C846,3,0)) ->  | C37: =IF(A37="","",(VLOOKUP(A37,data!A178:O1086,4,0))) ->  | D37: =IF(A37="","",(VLOOKUP(A37,data!A178:O1086,11,0))) ->  | E37: =IF(A37="","",(VLOOKUP(A37,data!A178:O1086,12,0))) -> 
A38: =IF(data!A179="","",data!A179) ->  | B38: =IF(A38="","",VLOOKUP(A38,data!A179:C847,3,0)) ->  | C38: =IF(A38="","",(VLOOKUP(A38,data!A179:O1087,4,0))) ->  | D38: =IF(A38="","",(VLOOKUP(A38,data!A179:O1087,11,0))) ->  | E38: =IF(A38="","",(VLOOKUP(A38,data!A179:O1087,12,0))) -> 
A39: =IF(data!A180="","",data!A180) ->  | B39: =IF(A39="","",VLOOKUP(A39,data!A180:C848,3,0)) ->  | C39: =IF(A39="","",(VLOOKUP(A39,data!A180:O1088,4,0))) ->  | D39: =IF(A39="","",(VLOOKUP(A39,data!A180:O1088,11,0))) ->  | E39: =IF(A39="","",(VLOOKUP(A39,data!A180:O1088,12,0))) -> 
A40: =IF(data!A181="","",data!A181) ->  | B40: =IF(A40="","",VLOOKUP(A40,data!A181:C849,3,0)) ->  | C40: =IF(A40="","",(VLOOKUP(A40,data!A181:O1089,4,0))) ->  | D40: =IF(A40="","",(VLOOKUP(A40,data!A181:O1089,11,0))) ->  | E40: =IF(A40="","",(VLOOKUP(A40,data!A181:O1089,12,0))) -> 
A41: =IF(data!A182="","",data!A182) ->  | B41: =IF(A41="","",VLOOKUP(A41,data!A182:C850,3,0)) ->  | C41: =IF(A41="","",(VLOOKUP(A41,data!A182:O1090,4,0))) ->  | D41: =IF(A41="","",(VLOOKUP(A41,data!A182:O1090,11,0))) ->  | E41: =IF(A41="","",(VLOOKUP(A41,data!A182:O1090,12,0))) -> 
A42: =IF(data!A183="","",data!A183) ->  | B42: =IF(A42="","",VLOOKUP(A42,data!A183:C851,3,0)) ->  | C42: =IF(A42="","",(VLOOKUP(A42,data!A183:O1091,4,0))) ->  | D42: =IF(A42="","",(VLOOKUP(A42,data!A183:O1091,11,0))) ->  | E42: =IF(A42="","",(VLOOKUP(A42,data!A183:O1091,12,0))) -> 
A43: =IF(data!A184="","",data!A184) ->  | B43: =IF(A43="","",VLOOKUP(A43,data!A184:C852,3,0)) ->  | C43: =IF(A43="","",(VLOOKUP(A43,data!A184:O1092,4,0))) ->  | D43: =IF(A43="","",(VLOOKUP(A43,data!A184:O1092,11,0))) ->  | E43: =IF(A43="","",(VLOOKUP(A43,data!A184:O1092,12,0))) -> 
A44: =IF(data!A185="","",data!A185) ->  | B44: =IF(A44="","",VLOOKUP(A44,data!A185:C853,3,0)) ->  | C44: =IF(A44="","",(VLOOKUP(A44,data!A185:O1093,4,0))) ->  | D44: =IF(A44="","",(VLOOKUP(A44,data!A185:O1093,11,0))) ->  | E44: =IF(A44="","",(VLOOKUP(A44,data!A185:O1093,12,0))) -> 
A45: =IF(data!A186="","",data!A186) ->  | B45: =IF(A45="","",VLOOKUP(A45,data!A186:C854,3,0)) ->  | C45: =IF(A45="","",(VLOOKUP(A45,data!A186:O1094,4,0))) ->  | D45: =IF(A45="","",(VLOOKUP(A45,data!A186:O1094,11,0))) ->  | E45: =IF(A45="","",(VLOOKUP(A45,data!A186:O1094,12,0))) -> 
A46: =IF(data!A187="","",data!A187) ->  | B46: =IF(A46="","",VLOOKUP(A46,data!A187:C855,3,0)) ->  | C46: =IF(A46="","",(VLOOKUP(A46,data!A187:O1095,4,0))) ->  | D46: =IF(A46="","",(VLOOKUP(A46,data!A187:O1095,11,0))) ->  | E46: =IF(A46="","",(VLOOKUP(A46,data!A187:O1095,12,0))) -> 
A47: =IF(data!A188="","",data!A188) ->  | B47: =IF(A47="","",VLOOKUP(A47,data!A188:C856,3,0)) ->  | C47: =IF(A47="","",(VLOOKUP(A47,data!A188:O1096,4,0))) ->  | D47: =IF(A47="","",(VLOOKUP(A47,data!A188:O1096,11,0))) ->  | E47: =IF(A47="","",(VLOOKUP(A47,data!A188:O1096,12,0))) -> 
A48: =IF(data!A189="","",data!A189) ->  | B48: =IF(A48="","",VLOOKUP(A48,data!A189:C857,3,0)) ->  | C48: =IF(A48="","",(VLOOKUP(A48,data!A189:O1097,4,0))) ->  | D48: =IF(A48="","",(VLOOKUP(A48,data!A189:O1097,11,0))) ->  | E48: =IF(A48="","",(VLOOKUP(A48,data!A189:O1097,12,0))) -> 
A49: =IF(data!A190="","",data!A190) ->  | B49: =IF(A49="","",VLOOKUP(A49,data!A190:C858,3,0)) ->  | C49: =IF(A49="","",(VLOOKUP(A49,data!A190:O1098,4,0))) ->  | D49: =IF(A49="","",(VLOOKUP(A49,data!A190:O1098,11,0))) ->  | E49: =IF(A49="","",(VLOOKUP(A49,data!A190:O1098,12,0))) -> 
A50: =IF(data!A191="","",data!A191) ->  | B50: =IF(A50="","",VLOOKUP(A50,data!A191:C859,3,0)) ->  | C50: =IF(A50="","",(VLOOKUP(A50,data!A191:O1099,4,0))) ->  | D50: =IF(A50="","",(VLOOKUP(A50,data!A191:O1099,11,0))) ->  | E50: =IF(A50="","",(VLOOKUP(A50,data!A191:O1099,12,0))) -> 
A51: =IF(data!A192="","",data!A192) ->  | B51: =IF(A51="","",VLOOKUP(A51,data!A192:C860,3,0)) ->  | C51: =IF(A51="","",(VLOOKUP(A51,data!A192:O1100,4,0))) ->  | D51: =IF(A51="","",(VLOOKUP(A51,data!A192:O1100,11,0))) ->  | E51: =IF(A51="","",(VLOOKUP(A51,data!A192:O1100,12,0))) -> 
A52: =IF(data!A193="","",data!A193) ->  | B52: =IF(A52="","",VLOOKUP(A52,data!A193:C861,3,0)) ->  | C52: =IF(A52="","",(VLOOKUP(A52,data!A193:O1101,4,0))) ->  | D52: =IF(A52="","",(VLOOKUP(A52,data!A193:O1101,11,0))) ->  | E52: =IF(A52="","",(VLOOKUP(A52,data!A193:O1101,12,0))) -> 
A53: =IF(data!A194="","",data!A194) ->  | B53: =IF(A53="","",VLOOKUP(A53,data!A194:C862,3,0)) ->  | C53: =IF(A53="","",(VLOOKUP(A53,data!A194:O1102,4,0))) ->  | D53: =IF(A53="","",(VLOOKUP(A53,data!A194:O1102,11,0))) ->  | E53: =IF(A53="","",(VLOOKUP(A53,data!A194:O1102,12,0))) -> 
A54: =IF(data!A195="","",data!A195) ->  | B54: =IF(A54="","",VLOOKUP(A54,data!A195:C863,3,0)) ->  | C54: =IF(A54="","",(VLOOKUP(A54,data!A195:O1103,4,0))) ->  | D54: =IF(A54="","",(VLOOKUP(A54,data!A195:O1103,11,0))) ->  | E54: =IF(A54="","",(VLOOKUP(A54,data!A195:O1103,12,0))) -> 
A55: =IF(data!A196="","",data!A196) ->  | B55: =IF(A55="","",VLOOKUP(A55,data!A196:C864,3,0)) ->  | C55: =IF(A55="","",(VLOOKUP(A55,data!A196:O1104,4,0))) ->  | D55: =IF(A55="","",(VLOOKUP(A55,data!A196:O1104,11,0))) ->  | E55: =IF(A55="","",(VLOOKUP(A55,data!A196:O1104,12,0))) -> 
A56: =IF(data!A197="","",data!A197) ->  | B56: =IF(A56="","",VLOOKUP(A56,data!A197:C865,3,0)) ->  | C56: =IF(A56="","",(VLOOKUP(A56,data!A197:O1105,4,0))) ->  | D56: =IF(A56="","",(VLOOKUP(A56,data!A197:O1105,11,0))) ->  | E56: =IF(A56="","",(VLOOKUP(A56,data!A197:O1105,12,0))) -> 
A57: =IF(data!A198="","",data!A198) ->  | B57: =IF(A57="","",VLOOKUP(A57,data!A198:C866,3,0)) ->  | C57: =IF(A57="","",(VLOOKUP(A57,data!A198:O1106,4,0))) ->  | D57: =IF(A57="","",(VLOOKUP(A57,data!A198:O1106,11,0))) ->  | E57: =IF(A57="","",(VLOOKUP(A57,data!A198:O1106,12,0))) -> 
A58: =IF(data!A199="","",data!A199) ->  | B58: =IF(A58="","",VLOOKUP(A58,data!A199:C867,3,0)) ->  | C58: =IF(A58="","",(VLOOKUP(A58,data!A199:O1107,4,0))) ->  | D58: =IF(A58="","",(VLOOKUP(A58,data!A199:O1107,11,0))) ->  | E58: =IF(A58="","",(VLOOKUP(A58,data!A199:O1107,12,0))) -> 
A59: =IF(data!A200="","",data!A200) ->  | B59: =IF(A59="","",VLOOKUP(A59,data!A200:C868,3,0)) ->  | C59: =IF(A59="","",(VLOOKUP(A59,data!A200:O1108,4,0))) ->  | D59: =IF(A59="","",(VLOOKUP(A59,data!A200:O1108,11,0))) ->  | E59: =IF(A59="","",(VLOOKUP(A59,data!A200:O1108,12,0))) -> 
A60: =IF(data!A201="","",data!A201) ->  | B60: =IF(A60="","",VLOOKUP(A60,data!A201:C869,3,0)) ->  | C60: =IF(A60="","",(VLOOKUP(A60,data!A201:O1109,4,0))) ->  | D60: =IF(A60="","",(VLOOKUP(A60,data!A201:O1109,11,0))) ->  | E60: =IF(A60="","",(VLOOKUP(A60,data!A201:O1109,12,0))) -> 
A61: =IF(data!A202="","",data!A202) ->  | B61: =IF(A61="","",VLOOKUP(A61,data!A202:C870,3,0)) ->  | C61: =IF(A61="","",(VLOOKUP(A61,data!A202:O1110,4,0))) ->  | D61: =IF(A61="","",(VLOOKUP(A61,data!A202:O1110,11,0))) ->  | E61: =IF(A61="","",(VLOOKUP(A61,data!A202:O1110,12,0))) -> 
A62: =IF(data!A203="","",data!A203) ->  | B62: =IF(A62="","",VLOOKUP(A62,data!A203:C871,3,0)) ->  | C62: =IF(A62="","",(VLOOKUP(A62,data!A203:O1111,4,0))) ->  | D62: =IF(A62="","",(VLOOKUP(A62,data!A203:O1111,11,0))) ->  | E62: =IF(A62="","",(VLOOKUP(A62,data!A203:O1111,12,0))) -> 
A63: =IF(data!A204="","",data!A204) ->  | B63: =IF(A63="","",VLOOKUP(A63,data!A204:C872,3,0)) ->  | C63: =IF(A63="","",(VLOOKUP(A63,data!A204:O1112,4,0))) ->  | D63: =IF(A63="","",(VLOOKUP(A63,data!A204:O1112,11,0))) ->  | E63: =IF(A63="","",(VLOOKUP(A63,data!A204:O1112,12,0))) -> 
A64: =IF(data!A205="","",data!A205) ->  | B64: =IF(A64="","",VLOOKUP(A64,data!A205:C873,3,0)) ->  | C64: =IF(A64="","",(VLOOKUP(A64,data!A205:O1113,4,0))) ->  | D64: =IF(A64="","",(VLOOKUP(A64,data!A205:O1113,11,0))) ->  | E64: =IF(A64="","",(VLOOKUP(A64,data!A205:O1113,12,0))) -> 
A65: =IF(data!A206="","",data!A206) ->  | B65: =IF(A65="","",VLOOKUP(A65,data!A206:C874,3,0)) ->  | C65: =IF(A65="","",(VLOOKUP(A65,data!A206:O1114,4,0))) ->  | D65: =IF(A65="","",(VLOOKUP(A65,data!A206:O1114,11,0))) ->  | E65: =IF(A65="","",(VLOOKUP(A65,data!A206:O1114,12,0))) -> 
A66: =IF(data!A207="","",data!A207) ->  | B66: =IF(A66="","",VLOOKUP(A66,data!A207:C875,3,0)) ->  | C66: =IF(A66="","",(VLOOKUP(A66,data!A207:O1115,4,0))) ->  | D66: =IF(A66="","",(VLOOKUP(A66,data!A207:O1115,11,0))) ->  | E66: =IF(A66="","",(VLOOKUP(A66,data!A207:O1115,12,0))) -> 
A67: =IF(data!A208="","",data!A208) ->  | B67: =IF(A67="","",VLOOKUP(A67,data!A208:C876,3,0)) ->  | C67: =IF(A67="","",(VLOOKUP(A67,data!A208:O1116,4,0))) ->  | D67: =IF(A67="","",(VLOOKUP(A67,data!A208:O1116,11,0))) ->  | E67: =IF(A67="","",(VLOOKUP(A67,data!A208:O1116,12,0))) -> 
A68: =IF(data!A209="","",data!A209) ->  | B68: =IF(A68="","",VLOOKUP(A68,data!A209:C877,3,0)) ->  | C68: =IF(A68="","",(VLOOKUP(A68,data!A209:O1117,4,0))) ->  | D68: =IF(A68="","",(VLOOKUP(A68,data!A209:O1117,11,0))) ->  | E68: =IF(A68="","",(VLOOKUP(A68,data!A209:O1117,12,0))) -> 
A69: =IF(data!A210="","",data!A210) ->  | B69: =IF(A69="","",VLOOKUP(A69,data!A210:C878,3,0)) ->  | C69: =IF(A69="","",(VLOOKUP(A69,data!A210:O1118,4,0))) ->  | D69: =IF(A69="","",(VLOOKUP(A69,data!A210:O1118,11,0))) ->  | E69: =IF(A69="","",(VLOOKUP(A69,data!A210:O1118,12,0))) -> 
A70: =IF(data!A211="","",data!A211) ->  | B70: =IF(A70="","",VLOOKUP(A70,data!A211:C879,3,0)) ->  | C70: =IF(A70="","",(VLOOKUP(A70,data!A211:O1119,4,0))) ->  | D70: =IF(A70="","",(VLOOKUP(A70,data!A211:O1119,11,0))) ->  | E70: =IF(A70="","",(VLOOKUP(A70,data!A211:O1119,12,0))) -> 
A71: =IF(data!A212="","",data!A212) ->  | B71: =IF(A71="","",VLOOKUP(A71,data!A212:C880,3,0)) ->  | C71: =IF(A71="","",(VLOOKUP(A71,data!A212:O1120,4,0))) ->  | D71: =IF(A71="","",(VLOOKUP(A71,data!A212:O1120,11,0))) ->  | E71: =IF(A71="","",(VLOOKUP(A71,data!A212:O1120,12,0))) -> 
A72: =IF(data!A213="","",data!A213) ->  | B72: =IF(A72="","",VLOOKUP(A72,data!A213:C881,3,0)) ->  | C72: =IF(A72="","",(VLOOKUP(A72,data!A213:O1121,4,0))) ->  | D72: =IF(A72="","",(VLOOKUP(A72,data!A213:O1121,11,0))) ->  | E72: =IF(A72="","",(VLOOKUP(A72,data!A213:O1121,12,0))) -> 
A73: =IF(data!A214="","",data!A214) ->  | B73: =IF(A73="","",VLOOKUP(A73,data!A214:C882,3,0)) ->  | C73: =IF(A73="","",(VLOOKUP(A73,data!A214:O1122,4,0))) ->  | D73: =IF(A73="","",(VLOOKUP(A73,data!A214:O1122,11,0))) ->  | E73: =IF(A73="","",(VLOOKUP(A73,data!A214:O1122,12,0))) -> 
A74: =IF(data!A215="","",data!A215) ->  | B74: =IF(A74="","",VLOOKUP(A74,data!A215:C883,3,0)) ->  | C74: =IF(A74="","",(VLOOKUP(A74,data!A215:O1123,4,0))) ->  | D74: =IF(A74="","",(VLOOKUP(A74,data!A215:O1123,11,0))) ->  | E74: =IF(A74="","",(VLOOKUP(A74,data!A215:O1123,12,0))) -> 
A75: =IF(data!A216="","",data!A216) ->  | B75: =IF(A75="","",VLOOKUP(A75,data!A216:C884,3,0)) ->  | C75: =IF(A75="","",(VLOOKUP(A75,data!A216:O1124,4,0))) ->  | D75: =IF(A75="","",(VLOOKUP(A75,data!A216:O1124,11,0))) ->  | E75: =IF(A75="","",(VLOOKUP(A75,data!A216:O1124,12,0))) -> 
A76: =IF(data!A217="","",data!A217) ->  | B76: =IF(A76="","",VLOOKUP(A76,data!A217:C885,3,0)) ->  | C76: =IF(A76="","",(VLOOKUP(A76,data!A217:O1125,4,0))) ->  | D76: =IF(A76="","",(VLOOKUP(A76,data!A217:O1125,11,0))) ->  | E76: =IF(A76="","",(VLOOKUP(A76,data!A217:O1125,12,0))) -> 
A77: =IF(data!A218="","",data!A218) ->  | B77: =IF(A77="","",VLOOKUP(A77,data!A218:C886,3,0)) ->  | C77: =IF(A77="","",(VLOOKUP(A77,data!A218:O1126,4,0))) ->  | D77: =IF(A77="","",(VLOOKUP(A77,data!A218:O1126,11,0))) ->  | E77: =IF(A77="","",(VLOOKUP(A77,data!A218:O1126,12,0))) -> 
A78: =IF(data!A219="","",data!A219) ->  | B78: =IF(A78="","",VLOOKUP(A78,data!A219:C887,3,0)) ->  | C78: =IF(A78="","",(VLOOKUP(A78,data!A219:O1127,4,0))) ->  | D78: =IF(A78="","",(VLOOKUP(A78,data!A219:O1127,11,0))) ->  | E78: =IF(A78="","",(VLOOKUP(A78,data!A219:O1127,12,0))) -> 
A79: =IF(data!A220="","",data!A220) ->  | B79: =IF(A79="","",VLOOKUP(A79,data!A220:C888,3,0)) ->  | C79: =IF(A79="","",(VLOOKUP(A79,data!A220:O1128,4,0))) ->  | D79: =IF(A79="","",(VLOOKUP(A79,data!A220:O1128,11,0))) ->  | E79: =IF(A79="","",(VLOOKUP(A79,data!A220:O1128,12,0))) -> 
A80: =IF(data!A221="","",data!A221) ->  | B80: =IF(A80="","",VLOOKUP(A80,data!A221:C889,3,0)) ->  | C80: =IF(A80="","",(VLOOKUP(A80,data!A221:O1129,4,0))) ->  | D80: =IF(A80="","",(VLOOKUP(A80,data!A221:O1129,11,0))) ->  | E80: =IF(A80="","",(VLOOKUP(A80,data!A221:O1129,12,0))) -> 
A81: =IF(data!A222="","",data!A222) ->  | B81: =IF(A81="","",VLOOKUP(A81,data!A222:C890,3,0)) ->  | C81: =IF(A81="","",(VLOOKUP(A81,data!A222:O1130,4,0))) ->  | D81: =IF(A81="","",(VLOOKUP(A81,data!A222:O1130,11,0))) ->  | E81: =IF(A81="","",(VLOOKUP(A81,data!A222:O1130,12,0))) -> 
A82: =IF(data!A223="","",data!A223) ->  | B82: =IF(A82="","",VLOOKUP(A82,data!A223:C891,3,0)) ->  | C82: =IF(A82="","",(VLOOKUP(A82,data!A223:O1131,4,0))) ->  | D82: =IF(A82="","",(VLOOKUP(A82,data!A223:O1131,11,0))) ->  | E82: =IF(A82="","",(VLOOKUP(A82,data!A223:O1131,12,0))) -> 
A83: =IF(data!A224="","",data!A224) ->  | B83: =IF(A83="","",VLOOKUP(A83,data!A224:C892,3,0)) ->  | C83: =IF(A83="","",(VLOOKUP(A83,data!A224:O1132,4,0))) ->  | D83: =IF(A83="","",(VLOOKUP(A83,data!A224:O1132,11,0))) ->  | E83: =IF(A83="","",(VLOOKUP(A83,data!A224:O1132,12,0))) -> 
A84: =IF(data!A225="","",data!A225) ->  | B84: =IF(A84="","",VLOOKUP(A84,data!A225:C893,3,0)) ->  | C84: =IF(A84="","",(VLOOKUP(A84,data!A225:O1133,4,0))) ->  | D84: =IF(A84="","",(VLOOKUP(A84,data!A225:O1133,11,0))) ->  | E84: =IF(A84="","",(VLOOKUP(A84,data!A225:O1133,12,0))) -> 
A85: =IF(data!A226="","",data!A226) ->  | B85: =IF(A85="","",VLOOKUP(A85,data!A226:C894,3,0)) ->  | C85: =IF(A85="","",(VLOOKUP(A85,data!A226:O1134,4,0))) ->  | D85: =IF(A85="","",(VLOOKUP(A85,data!A226:O1134,11,0))) ->  | E85: =IF(A85="","",(VLOOKUP(A85,data!A226:O1134,12,0))) -> 
A86: =IF(data!A227="","",data!A227) ->  | B86: =IF(A86="","",VLOOKUP(A86,data!A227:C895,3,0)) ->  | C86: =IF(A86="","",(VLOOKUP(A86,data!A227:O1135,4,0))) ->  | D86: =IF(A86="","",(VLOOKUP(A86,data!A227:O1135,11,0))) ->  | E86: =IF(A86="","",(VLOOKUP(A86,data!A227:O1135,12,0))) -> 
A87: =IF(data!A228="","",data!A228) ->  | B87: =IF(A87="","",VLOOKUP(A87,data!A228:C896,3,0)) ->  | C87: =IF(A87="","",(VLOOKUP(A87,data!A228:O1136,4,0))) ->  | D87: =IF(A87="","",(VLOOKUP(A87,data!A228:O1136,11,0))) ->  | E87: =IF(A87="","",(VLOOKUP(A87,data!A228:O1136,12,0))) -> 
A88: =IF(data!A229="","",data!A229) ->  | B88: =IF(A88="","",VLOOKUP(A88,data!A229:C897,3,0)) ->  | C88: =IF(A88="","",(VLOOKUP(A88,data!A229:O1137,4,0))) ->  | D88: =IF(A88="","",(VLOOKUP(A88,data!A229:O1137,11,0))) ->  | E88: =IF(A88="","",(VLOOKUP(A88,data!A229:O1137,12,0))) -> 
A89: =IF(data!A230="","",data!A230) ->  | B89: =IF(A89="","",VLOOKUP(A89,data!A230:C898,3,0)) ->  | C89: =IF(A89="","",(VLOOKUP(A89,data!A230:O1138,4,0))) ->  | D89: =IF(A89="","",(VLOOKUP(A89,data!A230:O1138,11,0))) ->  | E89: =IF(A89="","",(VLOOKUP(A89,data!A230:O1138,12,0))) -> 
A90: =IF(data!A231="","",data!A231) ->  | B90: =IF(A90="","",VLOOKUP(A90,data!A231:C899,3,0)) ->  | C90: =IF(A90="","",(VLOOKUP(A90,data!A231:O1139,4,0))) ->  | D90: =IF(A90="","",(VLOOKUP(A90,data!A231:O1139,11,0))) ->  | E90: =IF(A90="","",(VLOOKUP(A90,data!A231:O1139,12,0))) -> 
A91: =IF(data!A232="","",data!A232) ->  | B91: =IF(A91="","",VLOOKUP(A91,data!A232:C900,3,0)) ->  | C91: =IF(A91="","",(VLOOKUP(A91,data!A232:O1140,4,0))) ->  | D91: =IF(A91="","",(VLOOKUP(A91,data!A232:O1140,11,0))) ->  | E91: =IF(A91="","",(VLOOKUP(A91,data!A232:O1140,12,0))) -> 
A92: =IF(data!A233="","",data!A233) ->  | B92: =IF(A92="","",VLOOKUP(A92,data!A233:C901,3,0)) ->  | C92: =IF(A92="","",(VLOOKUP(A92,data!A233:O1141,4,0))) ->  | D92: =IF(A92="","",(VLOOKUP(A92,data!A233:O1141,11,0))) ->  | E92: =IF(A92="","",(VLOOKUP(A92,data!A233:O1141,12,0))) -> 
A93: =IF(data!A234="","",data!A234) ->  | B93: =IF(A93="","",VLOOKUP(A93,data!A234:C902,3,0)) ->  | C93: =IF(A93="","",(VLOOKUP(A93,data!A234:O1142,4,0))) ->  | D93: =IF(A93="","",(VLOOKUP(A93,data!A234:O1142,11,0))) ->  | E93: =IF(A93="","",(VLOOKUP(A93,data!A234:O1142,12,0))) -> 
A94: =IF(data!A235="","",data!A235) ->  | B94: =IF(A94="","",VLOOKUP(A94,data!A235:C903,3,0)) ->  | C94: =IF(A94="","",(VLOOKUP(A94,data!A235:O1143,4,0))) ->  | D94: =IF(A94="","",(VLOOKUP(A94,data!A235:O1143,11,0))) ->  | E94: =IF(A94="","",(VLOOKUP(A94,data!A235:O1143,12,0))) -> 
A95: =IF(data!A236="","",data!A236) ->  | B95: =IF(A95="","",VLOOKUP(A95,data!A236:C904,3,0)) ->  | C95: =IF(A95="","",(VLOOKUP(A95,data!A236:O1144,4,0))) ->  | D95: =IF(A95="","",(VLOOKUP(A95,data!A236:O1144,11,0))) ->  | E95: =IF(A95="","",(VLOOKUP(A95,data!A236:O1144,12,0))) -> 
A96: =IF(data!A237="","",data!A237) ->  | B96: =IF(A96="","",VLOOKUP(A96,data!A237:C905,3,0)) ->  | C96: =IF(A96="","",(VLOOKUP(A96,data!A237:O1145,4,0))) ->  | D96: =IF(A96="","",(VLOOKUP(A96,data!A237:O1145,11,0))) ->  | E96: =IF(A96="","",(VLOOKUP(A96,data!A237:O1145,12,0))) -> 
A97: =IF(data!A238="","",data!A238) ->  | B97: =IF(A97="","",VLOOKUP(A97,data!A238:C906,3,0)) ->  | C97: =IF(A97="","",(VLOOKUP(A97,data!A238:O1146,4,0))) ->  | D97: =IF(A97="","",(VLOOKUP(A97,data!A238:O1146,11,0))) ->  | E97: =IF(A97="","",(VLOOKUP(A97,data!A238:O1146,12,0))) -> 
A98: =IF(data!A239="","",data!A239) ->  | B98: =IF(A98="","",VLOOKUP(A98,data!A239:C907,3,0)) ->  | C98: =IF(A98="","",(VLOOKUP(A98,data!A239:O1147,4,0))) ->  | D98: =IF(A98="","",(VLOOKUP(A98,data!A239:O1147,11,0))) ->  | E98: =IF(A98="","",(VLOOKUP(A98,data!A239:O1147,12,0))) -> 
A99: =IF(data!A240="","",data!A240) ->  | B99: =IF(A99="","",VLOOKUP(A99,data!A240:C908,3,0)) ->  | C99: =IF(A99="","",(VLOOKUP(A99,data!A240:O1148,4,0))) ->  | D99: =IF(A99="","",(VLOOKUP(A99,data!A240:O1148,11,0))) ->  | E99: =IF(A99="","",(VLOOKUP(A99,data!A240:O1148,12,0))) -> 
A100: =IF(data!A241="","",data!A241) ->  | B100: =IF(A100="","",VLOOKUP(A100,data!A241:C909,3,0)) ->  | C100: =IF(A100="","",(VLOOKUP(A100,data!A241:O1149,4,0))) ->  | D100: =IF(A100="","",(VLOOKUP(A100,data!A241:O1149,11,0))) ->  | E100: =IF(A100="","",(VLOOKUP(A100,data!A241:O1149,12,0))) -> 
A101: =IF(data!A242="","",data!A242) ->  | B101: =IF(A101="","",VLOOKUP(A101,data!A242:C910,3,0)) ->  | C101: =IF(A101="","",(VLOOKUP(A101,data!A242:O1150,4,0))) ->  | D101: =IF(A101="","",(VLOOKUP(A101,data!A242:O1150,11,0))) ->  | E101: =IF(A101="","",(VLOOKUP(A101,data!A242:O1150,12,0))) -> 
A102: =IF(data!A243="","",data!A243) ->  | B102: =IF(A102="","",VLOOKUP(A102,data!A243:C911,3,0)) ->  | C102: =IF(A102="","",(VLOOKUP(A102,data!A243:O1151,4,0))) ->  | D102: =IF(A102="","",(VLOOKUP(A102,data!A243:O1151,11,0))) ->  | E102: =IF(A102="","",(VLOOKUP(A102,data!A243:O1151,12,0))) -> 
A103: =IF(data!A244="","",data!A244) ->  | B103: =IF(A103="","",VLOOKUP(A103,data!A244:C912,3,0)) ->  | C103: =IF(A103="","",(VLOOKUP(A103,data!A244:O1152,4,0))) ->  | D103: =IF(A103="","",(VLOOKUP(A103,data!A244:O1152,11,0))) ->  | E103: =IF(A103="","",(VLOOKUP(A103,data!A244:O1152,12,0))) -> 
A104: =IF(data!A245="","",data!A245) ->  | B104: =IF(A104="","",VLOOKUP(A104,data!A245:C913,3,0)) ->  | C104: =IF(A104="","",(VLOOKUP(A104,data!A245:O1153,4,0))) ->  | D104: =IF(A104="","",(VLOOKUP(A104,data!A245:O1153,11,0))) ->  | E104: =IF(A104="","",(VLOOKUP(A104,data!A245:O1153,12,0))) -> 
A105: =IF(data!A246="","",data!A246) ->  | B105: =IF(A105="","",VLOOKUP(A105,data!A246:C914,3,0)) ->  | C105: =IF(A105="","",(VLOOKUP(A105,data!A246:O1154,4,0))) ->  | D105: =IF(A105="","",(VLOOKUP(A105,data!A246:O1154,11,0))) ->  | E105: =IF(A105="","",(VLOOKUP(A105,data!A246:O1154,12,0))) -> 
A106: =IF(data!A247="","",data!A247) ->  | B106: =IF(A106="","",VLOOKUP(A106,data!A247:C915,3,0)) ->  | C106: =IF(A106="","",(VLOOKUP(A106,data!A247:O1155,4,0))) ->  | D106: =IF(A106="","",(VLOOKUP(A106,data!A247:O1155,11,0))) ->  | E106: =IF(A106="","",(VLOOKUP(A106,data!A247:O1155,12,0))) -> 
A107: =IF(data!A248="","",data!A248) ->  | B107: =IF(A107="","",VLOOKUP(A107,data!A248:C916,3,0)) ->  | C107: =IF(A107="","",(VLOOKUP(A107,data!A248:O1156,4,0))) ->  | D107: =IF(A107="","",(VLOOKUP(A107,data!A248:O1156,11,0))) ->  | E107: =IF(A107="","",(VLOOKUP(A107,data!A248:O1156,12,0))) -> 
A108: =IF(data!A249="","",data!A249) ->  | B108: =IF(A108="","",VLOOKUP(A108,data!A249:C917,3,0)) ->  | C108: =IF(A108="","",(VLOOKUP(A108,data!A249:O1157,4,0))) ->  | D108: =IF(A108="","",(VLOOKUP(A108,data!A249:O1157,11,0))) ->  | E108: =IF(A108="","",(VLOOKUP(A108,data!A249:O1157,12,0))) -> 
A109: =IF(data!A250="","",data!A250) ->  | B109: =IF(A109="","",VLOOKUP(A109,data!A250:C918,3,0)) ->  | C109: =IF(A109="","",(VLOOKUP(A109,data!A250:O1158,4,0))) ->  | D109: =IF(A109="","",(VLOOKUP(A109,data!A250:O1158,11,0))) ->  | E109: =IF(A109="","",(VLOOKUP(A109,data!A250:O1158,12,0))) -> 
A110: =IF(data!A251="","",data!A251) ->  | B110: =IF(A110="","",VLOOKUP(A110,data!A251:C919,3,0)) ->  | C110: =IF(A110="","",(VLOOKUP(A110,data!A251:O1159,4,0))) ->  | D110: =IF(A110="","",(VLOOKUP(A110,data!A251:O1159,11,0))) ->  | E110: =IF(A110="","",(VLOOKUP(A110,data!A251:O1159,12,0))) -> 
A111: =IF(data!A252="","",data!A252) ->  | B111: =IF(A111="","",VLOOKUP(A111,data!A252:C920,3,0)) ->  | C111: =IF(A111="","",(VLOOKUP(A111,data!A252:O1160,4,0))) ->  | D111: =IF(A111="","",(VLOOKUP(A111,data!A252:O1160,11,0))) ->  | E111: =IF(A111="","",(VLOOKUP(A111,data!A252:O1160,12,0))) -> 
A112: =IF(data!A253="","",data!A253) ->  | B112: =IF(A112="","",VLOOKUP(A112,data!A253:C921,3,0)) ->  | C112: =IF(A112="","",(VLOOKUP(A112,data!A253:O1161,4,0))) ->  | D112: =IF(A112="","",(VLOOKUP(A112,data!A253:O1161,11,0))) ->  | E112: =IF(A112="","",(VLOOKUP(A112,data!A253:O1161,12,0))) -> 
A113: =IF(data!A254="","",data!A254) ->  | B113: =IF(A113="","",VLOOKUP(A113,data!A254:C922,3,0)) ->  | C113: =IF(A113="","",(VLOOKUP(A113,data!A254:O1162,4,0))) ->  | D113: =IF(A113="","",(VLOOKUP(A113,data!A254:O1162,11,0))) ->  | E113: =IF(A113="","",(VLOOKUP(A113,data!A254:O1162,12,0))) -> 
A114: =IF(data!A255="","",data!A255) ->  | B114: =IF(A114="","",VLOOKUP(A114,data!A255:C923,3,0)) ->  | C114: =IF(A114="","",(VLOOKUP(A114,data!A255:O1163,4,0))) ->  | D114: =IF(A114="","",(VLOOKUP(A114,data!A255:O1163,11,0))) ->  | E114: =IF(A114="","",(VLOOKUP(A114,data!A255:O1163,12,0))) -> 
A115: =IF(data!A256="","",data!A256) ->  | B115: =IF(A115="","",VLOOKUP(A115,data!A256:C924,3,0)) ->  | C115: =IF(A115="","",(VLOOKUP(A115,data!A256:O1164,4,0))) ->  | D115: =IF(A115="","",(VLOOKUP(A115,data!A256:O1164,11,0))) ->  | E115: =IF(A115="","",(VLOOKUP(A115,data!A256:O1164,12,0))) -> 
A116: =IF(data!A257="","",data!A257) ->  | B116: =IF(A116="","",VLOOKUP(A116,data!A257:C925,3,0)) ->  | C116: =IF(A116="","",(VLOOKUP(A116,data!A257:O1165,4,0))) ->  | D116: =IF(A116="","",(VLOOKUP(A116,data!A257:O1165,11,0))) ->  | E116: =IF(A116="","",(VLOOKUP(A116,data!A257:O1165,12,0))) -> 
A117: =IF(data!A258="","",data!A258) ->  | B117: =IF(A117="","",VLOOKUP(A117,data!A258:C926,3,0)) ->  | C117: =IF(A117="","",(VLOOKUP(A117,data!A258:O1166,4,0))) ->  | D117: =IF(A117="","",(VLOOKUP(A117,data!A258:O1166,11,0))) ->  | E117: =IF(A117="","",(VLOOKUP(A117,data!A258:O1166,12,0))) -> 
A118: =IF(data!A259="","",data!A259) ->  | B118: =IF(A118="","",VLOOKUP(A118,data!A259:C927,3,0)) ->  | C118: =IF(A118="","",(VLOOKUP(A118,data!A259:O1167,4,0))) ->  | D118: =IF(A118="","",(VLOOKUP(A118,data!A259:O1167,11,0))) ->  | E118: =IF(A118="","",(VLOOKUP(A118,data!A259:O1167,12,0))) -> 
A119: =IF(data!A260="","",data!A260) ->  | B119: =IF(A119="","",VLOOKUP(A119,data!A260:C928,3,0)) ->  | C119: =IF(A119="","",(VLOOKUP(A119,data!A260:O1168,4,0))) ->  | D119: =IF(A119="","",(VLOOKUP(A119,data!A260:O1168,11,0))) ->  | E119: =IF(A119="","",(VLOOKUP(A119,data!A260:O1168,12,0))) -> 
A120: =IF(data!A261="","",data!A261) ->  | B120: =IF(A120="","",VLOOKUP(A120,data!A261:C929,3,0)) ->  | C120: =IF(A120="","",(VLOOKUP(A120,data!A261:O1169,4,0))) ->  | D120: =IF(A120="","",(VLOOKUP(A120,data!A261:O1169,11,0))) ->  | E120: =IF(A120="","",(VLOOKUP(A120,data!A261:O1169,12,0))) -> 
A121: =IF(data!A262="","",data!A262) ->  | B121: =IF(A121="","",VLOOKUP(A121,data!A262:C930,3,0)) ->  | C121: =IF(A121="","",(VLOOKUP(A121,data!A262:O1170,4,0))) ->  | D121: =IF(A121="","",(VLOOKUP(A121,data!A262:O1170,11,0))) ->  | E121: =IF(A121="","",(VLOOKUP(A121,data!A262:O1170,12,0))) -> 
A122: =IF(data!A263="","",data!A263) ->  | B122: =IF(A122="","",VLOOKUP(A122,data!A263:C931,3,0)) ->  | C122: =IF(A122="","",(VLOOKUP(A122,data!A263:O1171,4,0))) ->  | D122: =IF(A122="","",(VLOOKUP(A122,data!A263:O1171,11,0))) ->  | E122: =IF(A122="","",(VLOOKUP(A122,data!A263:O1171,12,0))) -> 
A123: =IF(data!A264="","",data!A264) ->  | B123: =IF(A123="","",VLOOKUP(A123,data!A264:C932,3,0)) ->  | C123: =IF(A123="","",(VLOOKUP(A123,data!A264:O1172,4,0))) ->  | D123: =IF(A123="","",(VLOOKUP(A123,data!A264:O1172,11,0))) ->  | E123: =IF(A123="","",(VLOOKUP(A123,data!A264:O1172,12,0))) -> 
A124: =IF(data!A265="","",data!A265) ->  | B124: =IF(A124="","",VLOOKUP(A124,data!A265:C933,3,0)) ->  | C124: =IF(A124="","",(VLOOKUP(A124,data!A265:O1173,4,0))) ->  | D124: =IF(A124="","",(VLOOKUP(A124,data!A265:O1173,11,0))) ->  | E124: =IF(A124="","",(VLOOKUP(A124,data!A265:O1173,12,0))) -> 
A125: =IF(data!A266="","",data!A266) ->  | B125: =IF(A125="","",VLOOKUP(A125,data!A266:C934,3,0)) ->  | C125: =IF(A125="","",(VLOOKUP(A125,data!A266:O1174,4,0))) ->  | D125: =IF(A125="","",(VLOOKUP(A125,data!A266:O1174,11,0))) ->  | E125: =IF(A125="","",(VLOOKUP(A125,data!A266:O1174,12,0))) -> 
A126: =IF(data!A267="","",data!A267) ->  | B126: =IF(A126="","",VLOOKUP(A126,data!A267:C935,3,0)) ->  | C126: =IF(A126="","",(VLOOKUP(A126,data!A267:O1175,4,0))) ->  | D126: =IF(A126="","",(VLOOKUP(A126,data!A267:O1175,11,0))) ->  | E126: =IF(A126="","",(VLOOKUP(A126,data!A267:O1175,12,0))) -> 
A127: =IF(data!A268="","",data!A268) ->  | B127: =IF(A127="","",VLOOKUP(A127,data!A268:C936,3,0)) ->  | C127: =IF(A127="","",(VLOOKUP(A127,data!A268:O1176,4,0))) ->  | D127: =IF(A127="","",(VLOOKUP(A127,data!A268:O1176,11,0))) ->  | E127: =IF(A127="","",(VLOOKUP(A127,data!A268:O1176,12,0))) -> 
A128: =IF(data!A269="","",data!A269) ->  | B128: =IF(A128="","",VLOOKUP(A128,data!A269:C937,3,0)) ->  | C128: =IF(A128="","",(VLOOKUP(A128,data!A269:O1177,4,0))) ->  | D128: =IF(A128="","",(VLOOKUP(A128,data!A269:O1177,11,0))) ->  | E128: =IF(A128="","",(VLOOKUP(A128,data!A269:O1177,12,0))) -> 
A129: =IF(data!A270="","",data!A270) ->  | B129: =IF(A129="","",VLOOKUP(A129,data!A270:C938,3,0)) ->  | C129: =IF(A129="","",(VLOOKUP(A129,data!A270:O1178,4,0))) ->  | D129: =IF(A129="","",(VLOOKUP(A129,data!A270:O1178,11,0))) ->  | E129: =IF(A129="","",(VLOOKUP(A129,data!A270:O1178,12,0))) -> 
A130: =IF(data!A271="","",data!A271) ->  | B130: =IF(A130="","",VLOOKUP(A130,data!A271:C939,3,0)) ->  | C130: =IF(A130="","",(VLOOKUP(A130,data!A271:O1179,4,0))) ->  | D130: =IF(A130="","",(VLOOKUP(A130,data!A271:O1179,11,0))) ->  | E130: =IF(A130="","",(VLOOKUP(A130,data!A271:O1179,12,0))) -> 
A131: =IF(data!A272="","",data!A272) ->  | B131: =IF(A131="","",VLOOKUP(A131,data!A272:C940,3,0)) ->  | C131: =IF(A131="","",(VLOOKUP(A131,data!A272:O1180,4,0))) ->  | D131: =IF(A131="","",(VLOOKUP(A131,data!A272:O1180,11,0))) ->  | E131: =IF(A131="","",(VLOOKUP(A131,data!A272:O1180,12,0))) -> 
A132: =IF(data!A273="","",data!A273) ->  | B132: =IF(A132="","",VLOOKUP(A132,data!A273:C941,3,0)) ->  | C132: =IF(A132="","",(VLOOKUP(A132,data!A273:O1181,4,0))) ->  | D132: =IF(A132="","",(VLOOKUP(A132,data!A273:O1181,11,0))) ->  | E132: =IF(A132="","",(VLOOKUP(A132,data!A273:O1181,12,0))) -> 
A133: =IF(data!A274="","",data!A274) ->  | B133: =IF(A133="","",VLOOKUP(A133,data!A274:C942,3,0)) ->  | C133: =IF(A133="","",(VLOOKUP(A133,data!A274:O1182,4,0))) ->  | D133: =IF(A133="","",(VLOOKUP(A133,data!A274:O1182,11,0))) ->  | E133: =IF(A133="","",(VLOOKUP(A133,data!A274:O1182,12,0))) -> 
A134: =IF(data!A275="","",data!A275) ->  | B134: =IF(A134="","",VLOOKUP(A134,data!A275:C943,3,0)) ->  | C134: =IF(A134="","",(VLOOKUP(A134,data!A275:O1183,4,0))) ->  | D134: =IF(A134="","",(VLOOKUP(A134,data!A275:O1183,11,0))) ->  | E134: =IF(A134="","",(VLOOKUP(A134,data!A275:O1183,12,0))) -> 
A135: =IF(data!A276="","",data!A276) ->  | B135: =IF(A135="","",VLOOKUP(A135,data!A276:C944,3,0)) ->  | C135: =IF(A135="","",(VLOOKUP(A135,data!A276:O1184,4,0))) ->  | D135: =IF(A135="","",(VLOOKUP(A135,data!A276:O1184,11,0))) ->  | E135: =IF(A135="","",(VLOOKUP(A135,data!A276:O1184,12,0))) -> 
A136: =IF(data!A277="","",data!A277) ->  | B136: =IF(A136="","",VLOOKUP(A136,data!A277:C945,3,0)) ->  | C136: =IF(A136="","",(VLOOKUP(A136,data!A277:O1185,4,0))) ->  | D136: =IF(A136="","",(VLOOKUP(A136,data!A277:O1185,11,0))) ->  | E136: =IF(A136="","",(VLOOKUP(A136,data!A277:O1185,12,0))) -> 
A137: =IF(data!A278="","",data!A278) ->  | B137: =IF(A137="","",VLOOKUP(A137,data!A278:C946,3,0)) ->  | C137: =IF(A137="","",(VLOOKUP(A137,data!A278:O1186,4,0))) ->  | D137: =IF(A137="","",(VLOOKUP(A137,data!A278:O1186,11,0))) ->  | E137: =IF(A137="","",(VLOOKUP(A137,data!A278:O1186,12,0))) -> 
A138: =IF(data!A279="","",data!A279) ->  | B138: =IF(A138="","",VLOOKUP(A138,data!A279:C947,3,0)) ->  | C138: =IF(A138="","",(VLOOKUP(A138,data!A279:O1187,4,0))) ->  | D138: =IF(A138="","",(VLOOKUP(A138,data!A279:O1187,11,0))) ->  | E138: =IF(A138="","",(VLOOKUP(A138,data!A279:O1187,12,0))) -> 
A139: =IF(data!A280="","",data!A280) ->  | B139: =IF(A139="","",VLOOKUP(A139,data!A280:C948,3,0)) ->  | C139: =IF(A139="","",(VLOOKUP(A139,data!A280:O1188,4,0))) ->  | D139: =IF(A139="","",(VLOOKUP(A139,data!A280:O1188,11,0))) ->  | E139: =IF(A139="","",(VLOOKUP(A139,data!A280:O1188,12,0))) -> 
A140: =IF(data!A281="","",data!A281) ->  | B140: =IF(A140="","",VLOOKUP(A140,data!A281:C949,3,0)) ->  | C140: =IF(A140="","",(VLOOKUP(A140,data!A281:O1189,4,0))) ->  | D140: =IF(A140="","",(VLOOKUP(A140,data!A281:O1189,11,0))) ->  | E140: =IF(A140="","",(VLOOKUP(A140,data!A281:O1189,12,0))) -> 
A141: =IF(data!A282="","",data!A282) ->  | B141: =IF(A141="","",VLOOKUP(A141,data!A282:C950,3,0)) ->  | C141: =IF(A141="","",(VLOOKUP(A141,data!A282:O1190,4,0))) ->  | D141: =IF(A141="","",(VLOOKUP(A141,data!A282:O1190,11,0))) ->  | E141: =IF(A141="","",(VLOOKUP(A141,data!A282:O1190,12,0))) -> 
A142: =IF(data!A283="","",data!A283) ->  | B142: =IF(A142="","",VLOOKUP(A142,data!A283:C951,3,0)) ->  | C142: =IF(A142="","",(VLOOKUP(A142,data!A283:O1191,4,0))) ->  | D142: =IF(A142="","",(VLOOKUP(A142,data!A283:O1191,11,0))) ->  | E142: =IF(A142="","",(VLOOKUP(A142,data!A283:O1191,12,0))) -> 
A143: =IF(data!A284="","",data!A284) ->  | B143: =IF(A143="","",VLOOKUP(A143,data!A284:C952,3,0)) ->  | C143: =IF(A143="","",(VLOOKUP(A143,data!A284:O1192,4,0))) ->  | D143: =IF(A143="","",(VLOOKUP(A143,data!A284:O1192,11,0))) ->  | E143: =IF(A143="","",(VLOOKUP(A143,data!A284:O1192,12,0))) -> 
A144: =IF(data!A285="","",data!A285) ->  | B144: =IF(A144="","",VLOOKUP(A144,data!A285:C953,3,0)) ->  | C144: =IF(A144="","",(VLOOKUP(A144,data!A285:O1193,4,0))) ->  | D144: =IF(A144="","",(VLOOKUP(A144,data!A285:O1193,11,0))) ->  | E144: =IF(A144="","",(VLOOKUP(A144,data!A285:O1193,12,0))) -> 
A145: =IF(data!A286="","",data!A286) ->  | B145: =IF(A145="","",VLOOKUP(A145,data!A286:C954,3,0)) ->  | C145: =IF(A145="","",(VLOOKUP(A145,data!A286:O1194,4,0))) ->  | D145: =IF(A145="","",(VLOOKUP(A145,data!A286:O1194,11,0))) ->  | E145: =IF(A145="","",(VLOOKUP(A145,data!A286:O1194,12,0))) -> 
A146: =IF(data!A287="","",data!A287) ->  | B146: =IF(A146="","",VLOOKUP(A146,data!A287:C955,3,0)) ->  | C146: =IF(A146="","",(VLOOKUP(A146,data!A287:O1195,4,0))) ->  | D146: =IF(A146="","",(VLOOKUP(A146,data!A287:O1195,11,0))) ->  | E146: =IF(A146="","",(VLOOKUP(A146,data!A287:O1195,12,0))) -> 
A147: =IF(data!A288="","",data!A288) ->  | B147: =IF(A147="","",VLOOKUP(A147,data!A288:C956,3,0)) ->  | C147: =IF(A147="","",(VLOOKUP(A147,data!A288:O1196,4,0))) ->  | D147: =IF(A147="","",(VLOOKUP(A147,data!A288:O1196,11,0))) ->  | E147: =IF(A147="","",(VLOOKUP(A147,data!A288:O1196,12,0))) -> 
A148: =IF(data!A289="","",data!A289) ->  | B148: =IF(A148="","",VLOOKUP(A148,data!A289:C957,3,0)) ->  | C148: =IF(A148="","",(VLOOKUP(A148,data!A289:O1197,4,0))) ->  | D148: =IF(A148="","",(VLOOKUP(A148,data!A289:O1197,11,0))) ->  | E148: =IF(A148="","",(VLOOKUP(A148,data!A289:O1197,12,0))) -> 
A149: =IF(data!A290="","",data!A290) ->  | B149: =IF(A149="","",VLOOKUP(A149,data!A290:C958,3,0)) ->  | C149: =IF(A149="","",(VLOOKUP(A149,data!A290:O1198,4,0))) ->  | D149: =IF(A149="","",(VLOOKUP(A149,data!A290:O1198,11,0))) ->  | E149: =IF(A149="","",(VLOOKUP(A149,data!A290:O1198,12,0))) -> 
A150: =IF(data!A291="","",data!A291) ->  | B150: =IF(A150="","",VLOOKUP(A150,data!A291:C959,3,0)) ->  | C150: =IF(A150="","",(VLOOKUP(A150,data!A291:O1199,4,0))) ->  | D150: =IF(A150="","",(VLOOKUP(A150,data!A291:O1199,11,0))) ->  | E150: =IF(A150="","",(VLOOKUP(A150,data!A291:O1199,12,0))) -> 
A151: =IF(data!A292="","",data!A292) ->  | B151: =IF(A151="","",VLOOKUP(A151,data!A292:C960,3,0)) ->  | C151: =IF(A151="","",(VLOOKUP(A151,data!A292:O1200,4,0))) ->  | D151: =IF(A151="","",(VLOOKUP(A151,data!A292:O1200,11,0))) ->  | E151: =IF(A151="","",(VLOOKUP(A151,data!A292:O1200,12,0))) -> 
A152: =IF(data!A293="","",data!A293) ->  | B152: =IF(A152="","",VLOOKUP(A152,data!A293:C961,3,0)) ->  | C152: =IF(A152="","",(VLOOKUP(A152,data!A293:O1201,4,0))) ->  | D152: =IF(A152="","",(VLOOKUP(A152,data!A293:O1201,11,0))) ->  | E152: =IF(A152="","",(VLOOKUP(A152,data!A293:O1201,12,0))) -> 
A153: =IF(data!A294="","",data!A294) ->  | B153: =IF(A153="","",VLOOKUP(A153,data!A294:C962,3,0)) ->  | C153: =IF(A153="","",(VLOOKUP(A153,data!A294:O1202,4,0))) ->  | D153: =IF(A153="","",(VLOOKUP(A153,data!A294:O1202,11,0))) ->  | E153: =IF(A153="","",(VLOOKUP(A153,data!A294:O1202,12,0))) -> 
A154: =IF(data!A295="","",data!A295) ->  | B154: =IF(A154="","",VLOOKUP(A154,data!A295:C963,3,0)) ->  | C154: =IF(A154="","",(VLOOKUP(A154,data!A295:O1203,4,0))) ->  | D154: =IF(A154="","",(VLOOKUP(A154,data!A295:O1203,11,0))) ->  | E154: =IF(A154="","",(VLOOKUP(A154,data!A295:O1203,12,0))) -> 
A155: =IF(data!A296="","",data!A296) ->  | B155: =IF(A155="","",VLOOKUP(A155,data!A296:C964,3,0)) ->  | C155: =IF(A155="","",(VLOOKUP(A155,data!A296:O1204,4,0))) ->  | D155: =IF(A155="","",(VLOOKUP(A155,data!A296:O1204,11,0))) ->  | E155: =IF(A155="","",(VLOOKUP(A155,data!A296:O1204,12,0))) -> 
A156: =IF(data!A297="","",data!A297) ->  | B156: =IF(A156="","",VLOOKUP(A156,data!A297:C965,3,0)) ->  | C156: =IF(A156="","",(VLOOKUP(A156,data!A297:O1205,4,0))) ->  | D156: =IF(A156="","",(VLOOKUP(A156,data!A297:O1205,11,0))) ->  | E156: =IF(A156="","",(VLOOKUP(A156,data!A297:O1205,12,0))) -> 
A157: =IF(data!A298="","",data!A298) ->  | B157: =IF(A157="","",VLOOKUP(A157,data!A298:C966,3,0)) ->  | C157: =IF(A157="","",(VLOOKUP(A157,data!A298:O1206,4,0))) ->  | D157: =IF(A157="","",(VLOOKUP(A157,data!A298:O1206,11,0))) ->  | E157: =IF(A157="","",(VLOOKUP(A157,data!A298:O1206,12,0))) -> 
A158: =IF(data!A299="","",data!A299) ->  | B158: =IF(A158="","",VLOOKUP(A158,data!A299:C967,3,0)) ->  | C158: =IF(A158="","",(VLOOKUP(A158,data!A299:O1207,4,0))) ->  | D158: =IF(A158="","",(VLOOKUP(A158,data!A299:O1207,11,0))) ->  | E158: =IF(A158="","",(VLOOKUP(A158,data!A299:O1207,12,0))) -> 
A159: =IF(data!A300="","",data!A300) ->  | B159: =IF(A159="","",VLOOKUP(A159,data!A300:C968,3,0)) ->  | C159: =IF(A159="","",(VLOOKUP(A159,data!A300:O1208,4,0))) ->  | D159: =IF(A159="","",(VLOOKUP(A159,data!A300:O1208,11,0))) ->  | E159: =IF(A159="","",(VLOOKUP(A159,data!A300:O1208,12,0))) -> 
A160: =IF(data!A301="","",data!A301) ->  | B160: =IF(A160="","",VLOOKUP(A160,data!A301:C969,3,0)) ->  | C160: =IF(A160="","",(VLOOKUP(A160,data!A301:O1209,4,0))) ->  | D160: =IF(A160="","",(VLOOKUP(A160,data!A301:O1209,11,0))) ->  | E160: =IF(A160="","",(VLOOKUP(A160,data!A301:O1209,12,0))) -> 
A161: =IF(data!A302="","",data!A302) ->  | B161: =IF(A161="","",VLOOKUP(A161,data!A302:C970,3,0)) ->  | C161: =IF(A161="","",(VLOOKUP(A161,data!A302:O1210,4,0))) ->  | D161: =IF(A161="","",(VLOOKUP(A161,data!A302:O1210,11,0))) ->  | E161: =IF(A161="","",(VLOOKUP(A161,data!A302:O1210,12,0))) -> 
A162: =IF(data!A303="","",data!A303) ->  | B162: =IF(A162="","",VLOOKUP(A162,data!A303:C971,3,0)) ->  | C162: =IF(A162="","",(VLOOKUP(A162,data!A303:O1211,4,0))) ->  | D162: =IF(A162="","",(VLOOKUP(A162,data!A303:O1211,11,0))) ->  | E162: =IF(A162="","",(VLOOKUP(A162,data!A303:O1211,12,0))) -> 
A163: =IF(data!A304="","",data!A304) ->  | B163: =IF(A163="","",VLOOKUP(A163,data!A304:C972,3,0)) ->  | C163: =IF(A163="","",(VLOOKUP(A163,data!A304:O1212,4,0))) ->  | D163: =IF(A163="","",(VLOOKUP(A163,data!A304:O1212,11,0))) ->  | E163: =IF(A163="","",(VLOOKUP(A163,data!A304:O1212,12,0))) -> 
A164: =IF(data!A305="","",data!A305) ->  | B164: =IF(A164="","",VLOOKUP(A164,data!A305:C973,3,0)) ->  | C164: =IF(A164="","",(VLOOKUP(A164,data!A305:O1213,4,0))) ->  | D164: =IF(A164="","",(VLOOKUP(A164,data!A305:O1213,11,0))) ->  | E164: =IF(A164="","",(VLOOKUP(A164,data!A305:O1213,12,0))) -> 
A165: =IF(data!A306="","",data!A306) ->  | B165: =IF(A165="","",VLOOKUP(A165,data!A306:C974,3,0)) ->  | C165: =IF(A165="","",(VLOOKUP(A165,data!A306:O1214,4,0))) ->  | D165: =IF(A165="","",(VLOOKUP(A165,data!A306:O1214,11,0))) ->  | E165: =IF(A165="","",(VLOOKUP(A165,data!A306:O1214,12,0))) -> 
A166: =IF(data!A307="","",data!A307) ->  | B166: =IF(A166="","",VLOOKUP(A166,data!A307:C975,3,0)) ->  | C166: =IF(A166="","",(VLOOKUP(A166,data!A307:O1215,4,0))) ->  | D166: =IF(A166="","",(VLOOKUP(A166,data!A307:O1215,11,0))) ->  | E166: =IF(A166="","",(VLOOKUP(A166,data!A307:O1215,12,0))) -> 
A167: =IF(data!A308="","",data!A308) ->  | B167: =IF(A167="","",VLOOKUP(A167,data!A308:C976,3,0)) ->  | C167: =IF(A167="","",(VLOOKUP(A167,data!A308:O1216,4,0))) ->  | D167: =IF(A167="","",(VLOOKUP(A167,data!A308:O1216,11,0))) ->  | E167: =IF(A167="","",(VLOOKUP(A167,data!A308:O1216,12,0))) -> 
A168: =IF(data!A309="","",data!A309) ->  | B168: =IF(A168="","",VLOOKUP(A168,data!A309:C977,3,0)) ->  | C168: =IF(A168="","",(VLOOKUP(A168,data!A309:O1217,4,0))) ->  | D168: =IF(A168="","",(VLOOKUP(A168,data!A309:O1217,11,0))) ->  | E168: =IF(A168="","",(VLOOKUP(A168,data!A309:O1217,12,0))) -> 
A169: =IF(data!A310="","",data!A310) ->  | B169: =IF(A169="","",VLOOKUP(A169,data!A310:C978,3,0)) ->  | C169: =IF(A169="","",(VLOOKUP(A169,data!A310:O1218,4,0))) ->  | D169: =IF(A169="","",(VLOOKUP(A169,data!A310:O1218,11,0))) ->  | E169: =IF(A169="","",(VLOOKUP(A169,data!A310:O1218,12,0))) -> 
A170: =IF(data!A311="","",data!A311) ->  | B170: =IF(A170="","",VLOOKUP(A170,data!A311:C979,3,0)) ->  | C170: =IF(A170="","",(VLOOKUP(A170,data!A311:O1219,4,0))) ->  | D170: =IF(A170="","",(VLOOKUP(A170,data!A311:O1219,11,0))) ->  | E170: =IF(A170="","",(VLOOKUP(A170,data!A311:O1219,12,0))) -> 
A171: =IF(data!A312="","",data!A312) ->  | B171: =IF(A171="","",VLOOKUP(A171,data!A312:C980,3,0)) ->  | C171: =IF(A171="","",(VLOOKUP(A171,data!A312:O1220,4,0))) ->  | D171: =IF(A171="","",(VLOOKUP(A171,data!A312:O1220,11,0))) ->  | E171: =IF(A171="","",(VLOOKUP(A171,data!A312:O1220,12,0))) -> 
A172: =IF(data!A313="","",data!A313) ->  | B172: =IF(A172="","",VLOOKUP(A172,data!A313:C981,3,0)) ->  | C172: =IF(A172="","",(VLOOKUP(A172,data!A313:O1221,4,0))) ->  | D172: =IF(A172="","",(VLOOKUP(A172,data!A313:O1221,11,0))) ->  | E172: =IF(A172="","",(VLOOKUP(A172,data!A313:O1221,12,0))) -> 
A173: =IF(data!A314="","",data!A314) ->  | B173: =IF(A173="","",VLOOKUP(A173,data!A314:C982,3,0)) ->  | C173: =IF(A173="","",(VLOOKUP(A173,data!A314:O1222,4,0))) ->  | D173: =IF(A173="","",(VLOOKUP(A173,data!A314:O1222,11,0))) ->  | E173: =IF(A173="","",(VLOOKUP(A173,data!A314:O1222,12,0))) -> 
A174: =IF(data!A315="","",data!A315) ->  | B174: =IF(A174="","",VLOOKUP(A174,data!A315:C983,3,0)) ->  | C174: =IF(A174="","",(VLOOKUP(A174,data!A315:O1223,4,0))) ->  | D174: =IF(A174="","",(VLOOKUP(A174,data!A315:O1223,11,0))) ->  | E174: =IF(A174="","",(VLOOKUP(A174,data!A315:O1223,12,0))) -> 
A175: =IF(data!A316="","",data!A316) ->  | B175: =IF(A175="","",VLOOKUP(A175,data!A316:C984,3,0)) ->  | C175: =IF(A175="","",(VLOOKUP(A175,data!A316:O1224,4,0))) ->  | D175: =IF(A175="","",(VLOOKUP(A175,data!A316:O1224,11,0))) ->  | E175: =IF(A175="","",(VLOOKUP(A175,data!A316:O1224,12,0))) -> 
A176: =IF(data!A317="","",data!A317) ->  | B176: =IF(A176="","",VLOOKUP(A176,data!A317:C985,3,0)) ->  | C176: =IF(A176="","",(VLOOKUP(A176,data!A317:O1225,4,0))) ->  | D176: =IF(A176="","",(VLOOKUP(A176,data!A317:O1225,11,0))) ->  | E176: =IF(A176="","",(VLOOKUP(A176,data!A317:O1225,12,0))) -> 
A177: =IF(data!A318="","",data!A318) ->  | B177: =IF(A177="","",VLOOKUP(A177,data!A318:C986,3,0)) ->  | C177: =IF(A177="","",(VLOOKUP(A177,data!A318:O1226,4,0))) ->  | D177: =IF(A177="","",(VLOOKUP(A177,data!A318:O1226,11,0))) ->  | E177: =IF(A177="","",(VLOOKUP(A177,data!A318:O1226,12,0))) -> 
A178: =IF(data!A319="","",data!A319) ->  | B178: =IF(A178="","",VLOOKUP(A178,data!A319:C987,3,0)) ->  | C178: =IF(A178="","",(VLOOKUP(A178,data!A319:O1227,4,0))) ->  | D178: =IF(A178="","",(VLOOKUP(A178,data!A319:O1227,11,0))) ->  | E178: =IF(A178="","",(VLOOKUP(A178,data!A319:O1227,12,0))) -> 
A179: =IF(data!A320="","",data!A320) ->  | B179: =IF(A179="","",VLOOKUP(A179,data!A320:C988,3,0)) ->  | C179: =IF(A179="","",(VLOOKUP(A179,data!A320:O1228,4,0))) ->  | D179: =IF(A179="","",(VLOOKUP(A179,data!A320:O1228,11,0))) ->  | E179: =IF(A179="","",(VLOOKUP(A179,data!A320:O1228,12,0))) -> 
A180: =IF(data!A321="","",data!A321) ->  | B180: =IF(A180="","",VLOOKUP(A180,data!A321:C989,3,0)) ->  | C180: =IF(A180="","",(VLOOKUP(A180,data!A321:O1229,4,0))) ->  | D180: =IF(A180="","",(VLOOKUP(A180,data!A321:O1229,11,0))) ->  | E180: =IF(A180="","",(VLOOKUP(A180,data!A321:O1229,12,0))) -> 
A181: =IF(data!A322="","",data!A322) ->  | B181: =IF(A181="","",VLOOKUP(A181,data!A322:C990,3,0)) ->  | C181: =IF(A181="","",(VLOOKUP(A181,data!A322:O1230,4,0))) ->  | D181: =IF(A181="","",(VLOOKUP(A181,data!A322:O1230,11,0))) ->  | E181: =IF(A181="","",(VLOOKUP(A181,data!A322:O1230,12,0))) -> 
A182: =IF(data!A323="","",data!A323) ->  | B182: =IF(A182="","",VLOOKUP(A182,data!A323:C991,3,0)) ->  | C182: =IF(A182="","",(VLOOKUP(A182,data!A323:O1231,4,0))) ->  | D182: =IF(A182="","",(VLOOKUP(A182,data!A323:O1231,11,0))) ->  | E182: =IF(A182="","",(VLOOKUP(A182,data!A323:O1231,12,0))) -> 
A183: =IF(data!A324="","",data!A324) ->  | B183: =IF(A183="","",VLOOKUP(A183,data!A324:C992,3,0)) ->  | C183: =IF(A183="","",(VLOOKUP(A183,data!A324:O1232,4,0))) ->  | D183: =IF(A183="","",(VLOOKUP(A183,data!A324:O1232,11,0))) ->  | E183: =IF(A183="","",(VLOOKUP(A183,data!A324:O1232,12,0))) -> 
A184: =IF(data!A325="","",data!A325) ->  | B184: =IF(A184="","",VLOOKUP(A184,data!A325:C993,3,0)) ->  | C184: =IF(A184="","",(VLOOKUP(A184,data!A325:O1233,4,0))) ->  | D184: =IF(A184="","",(VLOOKUP(A184,data!A325:O1233,11,0))) ->  | E184: =IF(A184="","",(VLOOKUP(A184,data!A325:O1233,12,0))) -> 
A185: =IF(data!A326="","",data!A326) ->  | B185: =IF(A185="","",VLOOKUP(A185,data!A326:C994,3,0)) ->  | C185: =IF(A185="","",(VLOOKUP(A185,data!A326:O1234,4,0))) ->  | D185: =IF(A185="","",(VLOOKUP(A185,data!A326:O1234,11,0))) ->  | E185: =IF(A185="","",(VLOOKUP(A185,data!A326:O1234,12,0))) -> 
A186: =IF(data!A327="","",data!A327) ->  | B186: =IF(A186="","",VLOOKUP(A186,data!A327:C995,3,0)) ->  | C186: =IF(A186="","",(VLOOKUP(A186,data!A327:O1235,4,0))) ->  | D186: =IF(A186="","",(VLOOKUP(A186,data!A327:O1235,11,0))) ->  | E186: =IF(A186="","",(VLOOKUP(A186,data!A327:O1235,12,0))) -> 
A187: =IF(data!A328="","",data!A328) ->  | B187: =IF(A187="","",VLOOKUP(A187,data!A328:C996,3,0)) ->  | C187: =IF(A187="","",(VLOOKUP(A187,data!A328:O1236,4,0))) ->  | D187: =IF(A187="","",(VLOOKUP(A187,data!A328:O1236,11,0))) ->  | E187: =IF(A187="","",(VLOOKUP(A187,data!A328:O1236,12,0))) -> 
A188: =IF(data!A329="","",data!A329) ->  | B188: =IF(A188="","",VLOOKUP(A188,data!A329:C997,3,0)) ->  | C188: =IF(A188="","",(VLOOKUP(A188,data!A329:O1237,4,0))) ->  | D188: =IF(A188="","",(VLOOKUP(A188,data!A329:O1237,11,0))) ->  | E188: =IF(A188="","",(VLOOKUP(A188,data!A329:O1237,12,0))) -> 
A189: =IF(data!A330="","",data!A330) ->  | B189: =IF(A189="","",VLOOKUP(A189,data!A330:C998,3,0)) ->  | C189: =IF(A189="","",(VLOOKUP(A189,data!A330:O1238,4,0))) ->  | D189: =IF(A189="","",(VLOOKUP(A189,data!A330:O1238,11,0))) ->  | E189: =IF(A189="","",(VLOOKUP(A189,data!A330:O1238,12,0))) -> 
A190: =IF(data!A331="","",data!A331) ->  | B190: =IF(A190="","",VLOOKUP(A190,data!A331:C999,3,0)) ->  | C190: =IF(A190="","",(VLOOKUP(A190,data!A331:O1239,4,0))) ->  | D190: =IF(A190="","",(VLOOKUP(A190,data!A331:O1239,11,0))) ->  | E190: =IF(A190="","",(VLOOKUP(A190,data!A331:O1239,12,0))) -> 
A191: =IF(data!A332="","",data!A332) ->  | B191: =IF(A191="","",VLOOKUP(A191,data!A332:C1000,3,0)) ->  | C191: =IF(A191="","",(VLOOKUP(A191,data!A332:O1240,4,0))) ->  | D191: =IF(A191="","",(VLOOKUP(A191,data!A332:O1240,11,0))) ->  | E191: =IF(A191="","",(VLOOKUP(A191,data!A332:O1240,12,0))) -> 
A192: =IF(data!A333="","",data!A333) ->  | B192: =IF(A192="","",VLOOKUP(A192,data!A333:C1001,3,0)) ->  | C192: =IF(A192="","",(VLOOKUP(A192,data!A333:O1241,4,0))) ->  | D192: =IF(A192="","",(VLOOKUP(A192,data!A333:O1241,11,0))) ->  | E192: =IF(A192="","",(VLOOKUP(A192,data!A333:O1241,12,0))) -> 
A193: =IF(data!A334="","",data!A334) ->  | B193: =IF(A193="","",VLOOKUP(A193,data!A334:C1002,3,0)) ->  | C193: =IF(A193="","",(VLOOKUP(A193,data!A334:O1242,4,0))) ->  | D193: =IF(A193="","",(VLOOKUP(A193,data!A334:O1242,11,0))) ->  | E193: =IF(A193="","",(VLOOKUP(A193,data!A334:O1242,12,0))) -> 
A194: =IF(data!A335="","",data!A335) ->  | B194: =IF(A194="","",VLOOKUP(A194,data!A335:C1003,3,0)) ->  | C194: =IF(A194="","",(VLOOKUP(A194,data!A335:O1243,4,0))) ->  | D194: =IF(A194="","",(VLOOKUP(A194,data!A335:O1243,11,0))) ->  | E194: =IF(A194="","",(VLOOKUP(A194,data!A335:O1243,12,0))) -> 
A195: =IF(data!A336="","",data!A336) ->  | B195: =IF(A195="","",VLOOKUP(A195,data!A336:C1004,3,0)) ->  | C195: =IF(A195="","",(VLOOKUP(A195,data!A336:O1244,4,0))) ->  | D195: =IF(A195="","",(VLOOKUP(A195,data!A336:O1244,11,0))) ->  | E195: =IF(A195="","",(VLOOKUP(A195,data!A336:O1244,12,0))) -> 
A196: =IF(data!A337="","",data!A337) ->  | B196: =IF(A196="","",VLOOKUP(A196,data!A337:C1005,3,0)) ->  | C196: =IF(A196="","",(VLOOKUP(A196,data!A337:O1245,4,0))) ->  | D196: =IF(A196="","",(VLOOKUP(A196,data!A337:O1245,11,0))) ->  | E196: =IF(A196="","",(VLOOKUP(A196,data!A337:O1245,12,0))) -> 
A197: =IF(data!A338="","",data!A338) ->  | B197: =IF(A197="","",VLOOKUP(A197,data!A338:C1006,3,0)) ->  | C197: =IF(A197="","",(VLOOKUP(A197,data!A338:O1246,4,0))) ->  | D197: =IF(A197="","",(VLOOKUP(A197,data!A338:O1246,11,0))) ->  | E197: =IF(A197="","",(VLOOKUP(A197,data!A338:O1246,12,0))) -> 
A198: =IF(data!A339="","",data!A339) ->  | B198: =IF(A198="","",VLOOKUP(A198,data!A339:C1007,3,0)) ->  | C198: =IF(A198="","",(VLOOKUP(A198,data!A339:O1247,4,0))) ->  | D198: =IF(A198="","",(VLOOKUP(A198,data!A339:O1247,11,0))) ->  | E198: =IF(A198="","",(VLOOKUP(A198,data!A339:O1247,12,0))) -> 
A199: =IF(data!A340="","",data!A340) ->  | B199: =IF(A199="","",VLOOKUP(A199,data!A340:C1008,3,0)) ->  | C199: =IF(A199="","",(VLOOKUP(A199,data!A340:O1248,4,0))) ->  | D199: =IF(A199="","",(VLOOKUP(A199,data!A340:O1248,11,0))) ->  | E199: =IF(A199="","",(VLOOKUP(A199,data!A340:O1248,12,0))) -> 
A200: =IF(data!A341="","",data!A341) ->  | B200: =IF(A200="","",VLOOKUP(A200,data!A341:C1009,3,0)) ->  | C200: =IF(A200="","",(VLOOKUP(A200,data!A341:O1249,4,0))) ->  | D200: =IF(A200="","",(VLOOKUP(A200,data!A341:O1249,11,0))) ->  | E200: =IF(A200="","",(VLOOKUP(A200,data!A341:O1249,12,0))) -> 
... 433 more rows

Sheet طباعة
A2: م | B2: الاسم | C2: الرقم القومي | D2: الصف الدراسي | E2: القسم | F2: رقم الهاتف
A3: =IF(B3="","",1) -> 1 | B3: خلود السيد محمد | C3: 30601201150065 | D3: الاول الثانوى | E3: علمي | F3: 01083644235
A4: =IF(B4="","",A3+1) -> 2 | B4: سهام محمد اللواتي | C4: 30601201150066 | D4: الاول الثانوى | E4: علمي | F4: 01083644236
A5: 3 | B5: آلاء محسن علي عوض | C5: 30601201150067 | D5: الاول الثانوى | E5: أدبي | F5: 01083644237
A6: 4 | B6: منى سالم محجوب | C6: 30601201150068 | D6: الاول الثانوى | E6: علمي | F6: 01083644238
A7: 5 | B7: هند كريم حمدي | C7: 30601201150069 | D7: الاول الثانوى | E7: أدبي | F7: 01083644239
A8: 6 | B8: نورا رجب حسن | C8: 30601201150070 | D8: الثاني الثانوى | E8: أدبي | F8: 01083644240
A9: 7 | B9: حبيبة السيد محمود | C9: 30601201150071 | D9: الثاني الثانوى | E9: أدبي | F9: 01083644241
A10: 8 | B10: مروة إبراهيم الزناتي | C10: 30601201150072 | D10: الثاني الثانوى | E10: علمي | F10: 01083644242
A11: 9 | B11: وفاء محمد عمر | C11: 30601201150073 | D11: الثاني الثانوى | E11: أدبي | F11: 01083644243
A12: 10 | B12: يمنى مسعود خالد | C12: 30601201150074 | D12: الثالث الثانوى | E12: علمي | F12: 01083644244
A13: 11 | B13: أمنية كرم محمود | C13: 30601201150075 | D13: الثالث الثانوى | E13: علمي | F13: 01083644245
A14: 12 | B14: نور سامح محمد | C14: 30601201150076 | D14: الثالث الثانوى | E14: أدبي | F14: 01083644246
A15: 13 | B15: رودينا احمد إبراهيم | C15: 30601201150077 | D15: الثالث الثانوى | E15: علمي | F15: 01083644247
A16: 14 | B16: سارة عماد فتحي | C16: 30601201150078 | D16: الثالث الثانوى | E16: علمي | F16: 01083644248
